Workbook

Sheet Cuadros (hidden)
A1: Ropa Dama | B1: Clima Frío | C1: Kit Clásico Clima Frío | D1: Sastre de dos (2) piezas (chaqueta, falda y/o pantalón) Blusa formal manga larga
A2: Ropa Dama | B2: Clima Frío | C2: Kit Formal 1 Clima Frío | D2: Chaqueta casual - Pantalón formal Blusa sport o de moda, o blusa formal manga larga
A3: Ropa Dama | B3: Clima Frío | C3: Kit Formal 2 Clima Frío | D3: Gabán o abrigo - Pantalón formal Blusa sport o de moda, o blusa formal manga larga
A4: Ropa Dama | B4: Clima Frío | C4: Kit Sport Clima Frío | D4: Chaqueta casual o chaqueta de jean - Jean clásico o de moda Blusa sport o de moda, o blusa formal manga larga, o camiseta tipo polo
A5: Ropa Dama | B5: Clima Frío | C5: Kit Dotación Clima Frío | D5: Kit clásico, formal 1, formal 2 o sport
A6: Ropa Dama | B6: Clima Cálido | C6: Kit Clásico Clima Cálido | D6: Pantalón o falda de sastre Blusa formal manga corta o manga larga
A7: Ropa Dama | B7: Clima Cálido | C7: Kit Formal Clima Cálido | D7: Blusa sport o de moda; o blusa formal manga corta o manga larga Pantalón formal
A8: Ropa Dama | B8: Clima Cálido | C8: Kit Sport Clima Cálido | D8: Blusa sport o de moda, o blusa formal manga corta, o camiseta tipo polo. Jean clásico o de moda
A9: Ropa Dama | B9: Clima Cálido | C9: Kit Dotación Clima Cálido | D9: Kit clásico, formal o sport
A10: Ropa Caballero | B10: Clima Frío | C10: Kit Clásico 1 Clima Frío | D10: Vestido formal de dos (2) piezas (saco y pantalón) gama alta Camisa formal - Corbata
A11: Ropa Caballero | B11: Clima Frío | C11: Kit Clásico 2 Clima Frío | D11: Vestido formal de dos (2) piezas (saco y pantalón) gama media Camisa formal - Corbata
A12: Ropa Caballero | B12: Clima Frío | C12: Kit Formal 1 Clima Frío | D12: Blazer de moda - Pantalón formal en drill Camisa sport o informal, o camisa formal
A13: Ropa Caballero | B13: Clima Frío | C13: Kit Formal 2 Clima Frío | D13: Chaqueta drill - Pantalón formal en drill Camisa sport o informal, o camisa formal
A14: Ropa Caballero | B14: Clima Frío | C14: Kit Sport Clima Frío | D14: Chaqueta de jean, o chaqueta en drill - Jean clásico o de moda Camisa sport o informal, camiseta tipo polo o camisa formal
A15: Ropa Caballero | B15: Clima Frío | C15: Kit Ropa Interior Clima Frío | D15: Camiseta tipo t-shirt blanca - Bóxer - Calcetín para calzado deportivo Camiseta tipo t-shirt estampada - Calcetín para calzado de calle
A16: Ropa Caballero | B16: Clima Frío | C16: Kit Dotación Clima Frío | D16: Kit clásico 1, formal 1, formal 2 o sport
A17: Ropa Caballero | B17: Clima Cálido | C17: Kit Clásico Clima Cálido | D17: Pantalón de vestido Camisa formal manga corta
A18: Ropa Caballero | B18: Clima Cálido | C18: Kit Formal Clima Cálido | D18: Camisa sport o informal Pantalón formal en drill
A19: Ropa Caballero | B19: Clima Cálido | C19: Kit Sport Clima Cálido | D19: Camisa sport o informal, o camiseta tipo polo Jean clásico o de moda
A20: Ropa Caballero | B20: Clima Cálido | C20: Kit Ropa Interior Clima Cálido | D20: Camiseta tipo t-shirt blanca - Bóxer - Calcetín para calzado de calle Camiseta tipo t-shirt estampada - Calcetín para calzado deportivo
A21: Ropa Caballero | B21: Clima Cálido | C21: Kit Dotación Clima Cálido | D21: Kit clásico, formal o sport

Sheet Consolidado (hidden)
A1: Segmento | B1: Descripción | C1: Categoria | D1: Zona | E1: Unidad | F1: Celmy LTDA. | G1: Yubarta S.A.S. | H1: Inversiones Sarhem de Colombia S.A.S. | I1: Confecciones Paez S.A. | J1: C.I Warriors Company S.A.S. | K1: Unón Temporal Dotación 2019 | L1: Vanegas Vallejo Inversores S.A.S. | M1: Grupo Fracotex S.A.S. | N1: Crisalltex S.A. | O1: Éxito Industrias S.A.S. | P1: Unión Temporal Color y moda | Q1: Permoda LTDA. | R1: NCS MODA S.A.S | S1: Unión Temporal Hermanos Blanco | T1: Unión Temporal Vestuario 2019 | U1: Degerard MG S.A.S. | V1: Dotación Integral S.A.S. | W1: Bacet Group S.A.S. | X1: Unión Temporal Calzado 2019 | Y1: Sparta Shoes S.A.S. | Z1: Luz Mila Pérez | AC1: c | AD1: Menor | AE1: Celmy LTDA. | AF1: Yubarta S.A.S. | AG1: Inversiones Sarhem de Colombia S.A.S. | AH1: Confecciones Paez S.A. | AI1: C.I Warriors Company S.A.S. | AJ1: Unón Temporal Dotación 2019 | AK1: Vanegas Vallejo Inversores S.A.S. | AL1: Grupo Fracotex S.A.S. | AM1: Crisalltex S.A. | AN1: Éxito Industrias S.A.S. | AO1: Unión Temporal Color y moda | AP1: Permoda LTDA. | AQ1: NCS MODA S.A.S | AR1: Unión Temporal Hermanos Blanco | AS1: Unión Temporal Vestuario 2019 | AT1: Degerard MG S.A.S. | AU1: Dotación Integral S.A.S. | AV1: Bacet Group S.A.S. | AW1: Unión Temporal Calzado 2019 | AX1: Sparta Shoes S.A.S. | AY1: Luz Mila Pérez
A2: Ropa Dama | B2: Sastre formal de dos piezas para dama: chaqueta y falda o pantalón (Opción Uno). | C2: 1 | D2: 1 | E2: =ROUND(AVERAGE(IF(F2:Z2>-1,F2:Z2)),0) -> 226009 | F2: 241757.1096 | G2: 213499.7851 | H2: 209514.7778 | I2: 228232.2363 | J2: 227024.6584 | K2: -1 | L2: 247125.1354 | M2: -1 | N2: -1 | O2: -1 | P2: -1 | Q2: -1 | R2: -1 | S2: -1 | T2: 214912.4235 | U2: -1 | V2: -1 | W2: -1 | X2: -1 | Y2: -1 | Z2: -1 | AC2: =A2&B2&C2&D2 -> Ropa DamaSastre formal de dos piezas para dama: chaqueta y falda o pantalón (Opción Uno).11 | AD2: =MIN(IF(AE2:AY2>-1,AE2:AY2)) -> 9677046.82 | AE2: =SUM(IF($AA:$AA=1,F:F*AB:AB,0)) -> -98 | AF2: =SUM(IF($AA:$AA=1,G:G*AB:AB,0)) -> -98 | AG2: =SUM(IF($AA:$AA=1,H:H*AB:AB,0)) -> 9677046.82 | AH2: =SUM(IF($AA:$AA=1,I:I*AB:AB,0)) -> 9683809.257 | AI2: =SUM(IF($AA:$AA=1,J:J*AB:AB,0)) -> -98 | AJ2: =SUM(IF($AA:$AA=1,K:K*AB:AB,0)) -> -98 | AK2: =SUM(IF($AA:$AA=1,L:L*AB:AB,0)) -> -98 | AL2: =SUM(IF($AA:$AA=1,M:M*AB:AB,0)) -> -98 | AM2: =SUM(IF($AA:$AA=1,N:N*AB:AB,0)) -> -98 | AN2: =SUM(IF($AA:$AA=1,O:O*AB:AB,0)) -> -98 | AO2: =SUM(IF($AA:$AA=1,P:P*AB:AB,0)) -> -98 | AP2: =SUM(IF($AA:$AA=1,Q:Q*AB:AB,0)) -> -98 | AQ2: =SUM(IF($AA:$AA=1,R:R*AB:AB,0)) -> -98 | AR2: =SUM(IF($AA:$AA=1,S:S*AB:AB,0)) -> 10887522.98 | AS2: =SUM(IF($AA:$AA=1,T:T*AB:AB,0)) -> -98 | AT2: =SUM(IF($AA:$AA=1,U:U*AB:AB,0)) -> -98 | AU2: =SUM(IF($AA:$AA=1,V:V*AB:AB,0)) -> 15372709.07 | AV2: =SUM(IF($AA:$AA=1,W:W*AB:AB,0)) -> 11726789.67 | AW2: =SUM(IF($AA:$AA=1,X:X*AB:AB,0)) -> 9937138.609 | AX2: =SUM(IF($AA:$AA=1,Y:Y*AB:AB,0)) -> 12140988.91 | AY2: =SUM(IF($AA:$AA=1,Z:Z*AB:AB,0)) -> -98
A3: Ropa Dama | B3: Sastre formal de dos piezas para dama: chaqueta y falda o pantalón (Opción Dos). | C3: 1 | D3: 1 | E3: =ROUND(AVERAGE(IF(F3:Z3>-1,F3:Z3)),0) -> 204702 | F3: 179192.0393 | G3: 210987.7951 | H3: 207099.6219 | I3: 202873.099 | J3: 202873.099 | K3: -1 | L3: 215552.6676 | M3: -1 | N3: -1 | O3: -1 | P3: -1 | Q3: -1 | R3: -1 | S3: -1 | T3: 214332.5582 | U3: -1 | V3: -1 | W3: -1 | X3: -1 | Y3: -1 | Z3: -1 | AC3: Ropa DamaSastre formal de dos piezas para dama: chaqueta y falda o pantalón (Opción Dos).11
A4: Ropa Dama | B4: Sastre formal de tres piezas para dama: chaqueta, chaleco y falda o pantalón. | C4: 1 | D4: 1 | E4: =ROUND(AVERAGE(IF(F4:Z4>-1,F4:Z4)),0) -> 292079 | F4: 363964.0002 | G4: 270014.4341 | H4: 265063.3644 | I4: 295856.6027 | J4: 265667.1534 | K4: -1 | L4: 316989.2171 | M4: -1 | N4: -1 | O4: -1 | P4: -1 | Q4: -1 | R4: -1 | S4: -1 | T4: 266995.4892 | U4: -1 | V4: -1 | W4: -1 | X4: -1 | Y4: -1 | Z4: -1 | AC4: Ropa DamaSastre formal de tres piezas para dama: chaqueta, chaleco y falda o pantalón.11 | AE4: =ROW(AE2) -> 2
A5: Ropa Dama | B5: Blazer para dama. | C5: 1 | D5: 1 | E5: =ROUND(AVERAGE(IF(F5:Z5>-1,F5:Z5)),0) -> 180360 | F5: 164314.9065 | G5: 194661.5688 | H5: 191401.1082 | I5: 199250.365 | J5: 147324.5123 | K5: -1 | L5: 171174.1772 | M5: -1 | N5: -1 | O5: -1 | P5: -1 | Q5: -1 | R5: -1 | S5: -1 | T5: 194396.1295 | U5: -1 | V5: -1 | W5: -1 | X5: -1 | Y5: -1 | Z5: -1 | AC5: Ropa DamaBlazer para dama.11 | AE5: =COLUMN(AE2) -> 31 | AT5: =COLUMN(AT2) -> 46
A6: Ropa Dama | B6: Blusa formal manga larga para dama. | C6: 1 | D6: 1 | E6: =ROUND(AVERAGE(IF(F6:Z6>-1,F6:Z6)),0) -> 69987 | F6: 63494.67751 | G6: 71023.81223 | H6: 69435.73327 | I6: 69435.73327 | J6: 57963.74256 | K6: -1 | L6: 87489.02393 | M6: -1 | N6: -1 | O6: -1 | P6: -1 | Q6: -1 | R6: -1 | S6: -1 | T6: 71065.96353 | U6: -1 | V6: -1 | W6: -1 | X6: -1 | Y6: -1 | Z6: -1 | AC6: Ropa DamaBlusa formal manga larga para dama.11
A7: Ropa Dama | B7: Blusa formal manga corta para dama. | C7: 1 | D7: 1 | E7: =ROUND(AVERAGE(IF(F7:Z7>-1,F7:Z7)),0) -> 66479 | F7: 62166.34174 | G7: 68509.54376 | H7: 67020.57733 | I7: 67020.57733 | J7: 55548.58662 | K7: -1 | L7: 78613.32585 | M7: -1 | N7: -1 | O7: -1 | P7: -1 | Q7: -1 | R7: -1 | S7: -1 | T7: 66477.16725 | U7: -1 | V7: -1 | W7: -1 | X7: -1 | Y7: -1 | Z7: -1 | AC7: Ropa DamaBlusa formal manga corta para dama.11
A8: Ropa Dama | B8: Blusa sport o informal para dama. | C8: 1 | D8: 1 | E8: =ROUND(AVERAGE(IF(F8:Z8>-1,F8:Z8)),0) -> 68360 | F8: 74386.80295 | G8: 67639.17624 | H8: 67020.57733 | I8: 65812.99936 | J8: 57963.74256 | K8: -1 | L8: 78613.32585 | M8: -1 | N8: -1 | O8: -1 | P8: -1 | Q8: -1 | R8: -1 | S8: -1 | T8: 67080.95623 | U8: -1 | V8: -1 | W8: -1 | X8: -1 | Y8: -1 | Z8: -1 | AC8: Ropa DamaBlusa sport o informal para dama.11
A9: Ropa Dama | B9: Blusa para dama. | C9: 1 | D9: 1 | E9: =ROUND(AVERAGE(IF(F9:Z9>-1,F9:Z9)),0) -> 66403 | F9: 55790.10221 | G9: 72840.87531 | H9: 71850.88922 | I9: 70884.82684 | J9: 57963.74256 | K9: -1 | L9: 69737.62777 | M9: -1 | N9: -1 | O9: -1 | P9: -1 | Q9: -1 | R9: -1 | S9: -1 | T9: 65752.62047 | U9: -1 | V9: -1 | W9: -1 | X9: -1 | Y9: -1 | Z9: -1 | AC9: Ropa DamaBlusa para dama.11
A10: Ropa Dama | B10: Chaqueta casual o sport. | C10: 1 | D10: 1 | E10: =ROUND(AVERAGE(IF(F10:Z10>-1,F10:Z10)),0) -> 123071 | F10: 110118.5794 | G10: 114284.7234 | H10: 111700.9622 | I10: 119550.219 | J10: 135248.7326 | K10: -1 | L10: 154690.738 | M10: -1 | N10: -1 | O10: -1 | P10: -1 | Q10: -1 | R10: -1 | S10: -1 | T10: 115903.5614 | U10: -1 | V10: -1 | W10: -1 | X10: -1 | Y10: -1 | Z10: -1 | AC10: Ropa DamaChaqueta casual o sport.11
A11: Ropa Dama | B11: Chaqueta de jean | C11: 1 | D11: 1 | E11: =ROUND(AVERAGE(IF(F11:Z11>-1,F11:Z11)),0) -> 125015 | F11: 159400.292 | G11: 113029.298 | H11: 138267.6776 | I11: 107474.4393 | J11: 123172.9529 | K11: -1 | L11: 96364.72201 | M11: -1 | N11: -1 | O11: -1 | P11: -1 | Q11: -1 | R11: -1 | S11: -1 | T11: 137398.4493 | U11: -1 | V11: -1 | W11: -1 | X11: -1 | Y11: -1 | Z11: -1 | AC11: Ropa DamaChaqueta de jean11
A12: Ropa Dama | B12: Falda | C12: 1 | D12: 1 | E12: =ROUND(AVERAGE(IF(F12:Z12>-1,F12:Z12)),0) -> 72584 | F12: 85013.48909 | G12: 69073.45988 | H12: 68228.1553 | I12: 67020.57733 | J12: 60378.8985 | K12: -1 | L12: 88756.98079 | M12: -1 | N12: -1 | O12: -1 | P12: -1 | Q12: -1 | R12: -1 | S12: -1 | T12: 69616.86997 | U12: -1 | V12: -1 | W12: -1 | X12: -1 | Y12: -1 | Z12: -1 | AC12: Ropa DamaFalda11
A13: Ropa Dama | B13: Gabán o abrigo para dama | C13: 1 | D13: 1 | E13: =ROUND(AVERAGE(IF(F13:Z13>-1,F13:Z13)),0) -> 201510 | F13: 236443.7665 | G13: 214755.2105 | H13: 210722.3558 | I13: 206495.8329 | J13: 193212.4752 | K13: -1 | L13: 139475.2555 | M13: -1 | N13: -1 | O13: -1 | P13: -1 | Q13: -1 | R13: -1 | S13: -1 | T13: 209466.9304 | U13: -1 | V13: -1 | W13: -1 | X13: -1 | Y13: -1 | Z13: -1 | AC13: Ropa DamaGabán o abrigo para dama11
A14: Ropa Dama | B14: Pantalón formal | C14: 1 | D14: 1 | E14: =ROUND(AVERAGE(IF(F14:Z14>-1,F14:Z14)),0) -> 84777 | F14: 86341.82485 | G14: 83417.43556 | H14: 81511.51298 | I14: 81994.54416 | J14: 74869.83414 | K14: -1 | L14: 100168.5926 | M14: -1 | N14: -1 | O14: -1 | P14: -1 | Q14: -1 | R14: -1 | S14: -1 | T14: 85134.24688 | U14: -1 | V14: -1 | W14: -1 | X14: -1 | Y14: -1 | Z14: -1 | AC14: Ropa DamaPantalón formal11
A15: Ropa Dama | B15: Pantalón drill formal | C15: 1 | D15: 1 | E15: =ROUND(AVERAGE(IF(F15:Z15>-1,F15:Z15)),0) -> 80054 | F15: 85013.48909 | G15: 75352.86533 | H15: 74266.04515 | I15: 72333.9204 | J15: 96606.2376 | K15: -1 | L15: 82417.19645 | M15: -1 | N15: -1 | O15: -1 | P15: -1 | Q15: -1 | R15: -1 | S15: -1 | T15: 74386.80295 | U15: -1 | V15: -1 | W15: -1 | X15: -1 | Y15: -1 | Z15: -1 | AC15: Ropa DamaPantalón drill formal11
A16: Ropa Dama | B16: Jean clásico | C16: 1 | D16: 1 | E16: =ROUND(AVERAGE(IF(F16:Z16>-1,F16:Z16)),0) -> 71977 | F16: 86341.82485 | G16: 60282.06442 | H16: 59775.10951 | I16: 58157.41072 | J16: 96606.2376 | K16: -1 | L16: 82417.19645 | M16: -1 | N16: -1 | O16: -1 | P16: -1 | Q16: -1 | R16: -1 | S16: -1 | T16: 60258.1407 | U16: -1 | V16: -1 | W16: -1 | X16: -1 | Y16: -1 | Z16: -1 | AC16: Ropa DamaJean clásico11
A17: Ropa Dama | B17: Jean informal | C17: 1 | D17: 1 | E17: =ROUND(AVERAGE(IF(F17:Z17>-1,F17:Z17)),0) -> 89442 | F17: 126191.8979 | G17: 72840.87531 | H17: 71850.88922 | I17: 69918.76446 | J17: 106266.8614 | K17: -1 | L17: 107776.3338 | M17: -1 | N17: -1 | O17: -1 | P17: -1 | Q17: -1 | R17: -1 | S17: -1 | T17: 71247.10023 | U17: -1 | V17: -1 | W17: -1 | X17: -1 | Y17: -1 | Z17: -1 | AC17: Ropa DamaJean informal11
A18: Ropa Dama | B18: Camisa tipo polo | C18: 1 | D18: 1 | E18: =ROUND(AVERAGE(IF(F18:Z18>-1,F18:Z18)),0) -> 36564 | F18: 38521.73724 | G18: 31397.02722 | H18: 30793.23824 | I18: 30793.23824 | J18: 43472.80692 | K18: -1 | L18: 49450.31787 | M18: -1 | N18: -1 | O18: -1 | P18: -1 | Q18: -1 | R18: -1 | S18: -1 | T18: 31517.78502 | U18: -1 | V18: -1 | W18: -1 | X18: -1 | Y18: -1 | Z18: -1 | AC18: Ropa DamaCamisa tipo polo11
A19: Ropa Dama | B19: Camiseta tipo T-shirt básica | C19: 1 | D19: 1 | E19: =ROUND(AVERAGE(IF(F19:Z19>-1,F19:Z19)),0) -> 20592 | F19: 17932.53285 | G19: 16326.22631 | H19: 16302.30259 | I19: 15577.75581 | J19: 28981.87128 | K19: -1 | L19: 32840.42466 | M19: -1 | N19: -1 | O19: -1 | P19: -1 | Q19: -1 | R19: -1 | S19: -1 | T19: 16181.5448 | U19: -1 | V19: -1 | W19: -1 | X19: -1 | Y19: -1 | Z19: -1 | AC19: Ropa DamaCamiseta tipo T-shirt básica11
A20: Ropa Dama | B20: Bata o blusa labor | C20: 1 | D20: 1 | E20: =ROUND(AVERAGE(IF(F20:Z20>-1,F20:Z20)),0) -> 41790 | F20: 46491.75184 | G20: 31397.02722 | H20: 32000.8162 | I20: 30068.69145 | J20: 43472.80692 | K20: -1 | L20: 74683.00132 | M20: -1 | N20: -1 | O20: -1 | P20: -1 | Q20: -1 | R20: -1 | S20: -1 | T20: 34415.97214 | U20: -1 | V20: -1 | W20: -1 | X20: -1 | Y20: -1 | Z20: -1 | AC20: Ropa DamaBata o blusa labor11
A21: Ropa Dama | B21: Pashmina | C21: 1 | D21: 1 | E21: =ROUND(AVERAGE(IF(F21:Z21>-1,F21:Z21)),0) -> 29085 | F21: 11955.0219 | G21: 25117.62178 | H21: 25962.92635 | I21: 24151.5594 | J21: 28981.87128 | K21: -1 | L21: 58326.01595 | M21: -1 | N21: -1 | O21: -1 | P21: -1 | Q21: -1 | R21: -1 | S21: -1 | T21: 29102.62908 | U21: -1 | V21: -1 | W21: -1 | X21: -1 | Y21: -1 | Z21: -1 | AC21: Ropa DamaPashmina11
A22: Ropa Dama | B22: Vestido | C22: 1 | D22: 1 | E22: =ROUND(AVERAGE(IF(F22:Z22>-1,F22:Z22)),0) -> 151361 | F22: 96968.51099 | G22: 163264.5415 | H22: 160004.081 | I22: 158796.5031 | J22: 156985.1361 | K22: -1 | L22: 164834.3929 | M22: -1 | N22: -1 | O22: -1 | P22: -1 | Q22: -1 | R22: -1 | S22: -1 | T22: 158675.7453 | U22: -1 | V22: -1 | W22: -1 | X22: -1 | Y22: -1 | Z22: -1 | AC22: Ropa DamaVestido11
A23: Ropa Dama | B23: Logo corporativo (tamaño bolsillo) | C23: 1 | D23: 1 | E23: =ROUND(AVERAGE(IF(F23:Z23>-1,F23:Z23)),0) -> 7459 | F23: 4830.31188 | G23: 6279.405444 | H23: 7003.952226 | I23: 5917.132053 | J23: 12075.7797 | K23: -1 | L23: 8621.651016 | M23: -1 | N23: -1 | O23: -1 | P23: -1 | Q23: -1 | R23: -1 | S23: -1 | T23: 7486.983414 | U23: -1 | V23: -1 | W23: -1 | X23: -1 | Y23: -1 | Z23: -1 | AC23: Ropa DamaLogo corporativo (tamaño bolsillo)11
A24: Ropa Dama | B24: Logo corporativo (tamaño espalda) | C24: 1 | D24: 1 | E24: =ROUND(AVERAGE(IF(F24:Z24>-1,F24:Z24)),0) -> 13499 | F24: 14490.93564 | G24: 12935.8942 | H24: 12317.29529 | I24: 11955.0219 | J24: 16906.09158 | K24: -1 | L24: 13693.47849 | M24: -1 | N24: -1 | O24: -1 | P24: -1 | Q24: -1 | R24: -1 | S24: -1 | T24: 12196.5375 | U24: -1 | V24: -1 | W24: -1 | X24: -1 | Y24: -1 | Z24: -1 | AC24: Ropa DamaLogo corporativo (tamaño espalda)11
A25: Ropa Caballero | B25: Vestido formal de dos piezas para hombre: saco y pantalón (Opción uno). | C25: 1 | D25: 1 | E25: =ROUND(AVERAGE(IF(F25:Z25>-1,F25:Z25)),0) -> 279904 | F25: -1 | G25: 238617.4069 | H25: 233304.0638 | I25: 301773.7347 | J25: -1 | K25: -1 | L25: -1 | M25: -1 | N25: -1 | O25: -1 | P25: -1 | Q25: -1 | R25: -1 | S25: 389081.6219 | T25: 236745.661 | U25: -1 | V25: -1 | W25: -1 | X25: -1 | Y25: -1 | Z25: -1 | AC25: Ropa CaballeroVestido formal de dos piezas para hombre: saco y pantalón (Opción uno).11
A26: Ropa Caballero | B26: Vestido formal de dos piezas para hombre: saco y pantalón (Opción dos). | C26: 1 | D26: 1 | E26: =ROUND(AVERAGE(IF(F26:Z26>-1,F26:Z26)),0) -> 256881 | F26: -1 | G26: 226058.596 | H26: 221228.2841 | I26: 264459.5754 | J26: -1 | K26: -1 | L26: -1 | M26: -1 | N26: -1 | O26: -1 | P26: -1 | Q26: -1 | R26: -1 | S26: 349956.0957 | T26: 222701.3014 | U26: -1 | V26: -1 | W26: -1 | X26: -1 | Y26: -1 | Z26: -1 | AC26: Ropa CaballeroVestido formal de dos piezas para hombre: saco y pantalón (Opción dos).11
A27: Ropa Caballero | B27: Camisa formal manga larga (Tipo uno, recomendable clima cálido). | C27: 1 | D27: 1 | E27: =ROUND(AVERAGE(IF(F27:Z27>-1,F27:Z27)),0) -> 67045 | F27: -1 | G27: 62794.05444 | H27: 61827.99206 | I27: 62069.50766 | J27: -1 | K27: -1 | L27: -1 | M27: -1 | N27: -1 | O27: -1 | P27: -1 | Q27: -1 | R27: -1 | S27: 85858.79367 | T27: 62673.29664 | U27: -1 | V27: -1 | W27: -1 | X27: -1 | Y27: -1 | Z27: -1 | AC27: Ropa CaballeroCamisa formal manga larga (Tipo uno, recomendable clima cálido).11
A28: Ropa Caballero | B28: Camisa formal manga corta (Tipo uno, recomendable clima cálido). | C28: 1 | D28: 1 | E28: =ROUND(AVERAGE(IF(F28:Z28>-1,F28:Z28)),0) -> 61118 | F28: -1 | G28: 56514.649 | H28: 55790.10221 | I28: 56152.3756 | J28: -1 | K28: -1 | L28: -1 | M28: -1 | N28: -1 | O28: -1 | P28: -1 | Q28: -1 | R28: -1 | S28: 81511.51298 | T28: 55621.49699 | U28: -1 | V28: -1 | W28: -1 | X28: -1 | Y28: -1 | Z28: -1 | AC28: Ropa CaballeroCamisa formal manga corta (Tipo uno, recomendable clima cálido).11
A29: Ropa Caballero | B29: Camisa formal manga larga para caballero (Tipo dos). | C29: 1 | D29: 1 | E29: =ROUND(AVERAGE(IF(F29:Z29>-1,F29:Z29)),0) -> 69025 | F29: -1 | G29: 62794.05444 | H29: 61827.99206 | I29: 62190.26545 | J29: -1 | K29: -1 | L29: -1 | M29: -1 | N29: -1 | O29: -1 | P29: -1 | Q29: -1 | R29: -1 | S29: 95640.17522 | T29: 62673.29664 | U29: -1 | V29: -1 | W29: -1 | X29: -1 | Y29: -1 | Z29: -1 | AC29: Ropa CaballeroCamisa formal manga larga para caballero (Tipo dos).11
A30: Ropa Caballero | B30: Camisa formal manga corta para caballero (Tipo dos). | C30: 1 | D30: 1 | E30: =ROUND(AVERAGE(IF(F30:Z30>-1,F30:Z30)),0) -> 62640 | F30: -1 | G30: 56514.649 | H30: 55790.10221 | I30: 56152.3756 | J30: -1 | K30: -1 | L30: -1 | M30: -1 | N30: -1 | O30: -1 | P30: -1 | Q30: -1 | R30: -1 | S30: 89119.25419 | T30: 55621.49699 | U30: -1 | V30: -1 | W30: -1 | X30: -1 | Y30: -1 | Z30: -1 | AC30: Ropa CaballeroCamisa formal manga corta para caballero (Tipo dos).11
A31: Ropa Caballero | B31: Corbata | C31: 1 | D31: 1 | E31: =ROUND(AVERAGE(IF(F31:Z31>-1,F31:Z31)),0) -> 24879 | F31: -1 | G31: 18838.21633 | H31: 18355.18514 | I31: 22823.22363 | J31: -1 | K31: -1 | L31: -1 | M31: -1 | N31: -1 | O31: -1 | P31: -1 | Q31: -1 | R31: -1 | S31: 39125.52623 | T31: 25250.91104 | U31: -1 | V31: -1 | W31: -1 | X31: -1 | Y31: -1 | Z31: -1 | AC31: Ropa CaballeroCorbata11
A32: Ropa Caballero | B32: Chaqueta casual o sport. | C32: 1 | D32: 1 | E32: =ROUND(AVERAGE(IF(F32:Z32>-1,F32:Z32)),0) -> 114715 | F32: -1 | G32: 96703.07168 | H32: 95640.17522 | I32: 107957.4705 | J32: -1 | K32: -1 | L32: -1 | M32: -1 | N32: -1 | O32: -1 | P32: -1 | Q32: -1 | R32: -1 | S32: 176064.868 | T32: 97210.02658 | U32: -1 | V32: -1 | W32: -1 | X32: -1 | Y32: -1 | Z32: -1 | AC32: Ropa CaballeroChaqueta casual o sport.11
A33: Ropa Caballero | B33: Chaqueta de jean | C33: 1 | D33: 1 | E33: =ROUND(AVERAGE(IF(F33:Z33>-1,F33:Z33)),0) -> 118215 | F33: -1 | G33: 109261.8826 | H33: 111338.6888 | I33: 107353.6815 | J33: -1 | K33: -1 | L33: -1 | M33: -1 | N33: -1 | O33: -1 | P33: -1 | Q33: -1 | R33: -1 | S33: 152154.8242 | T33: 110963.884 | U33: -1 | V33: -1 | W33: -1 | X33: -1 | Y33: -1 | Z33: -1 | AC33: Ropa CaballeroChaqueta de jean11
A34: Ropa Caballero | B34: Chaqueta de drill | C34: 1 | D34: 1 | E34: =ROUND(AVERAGE(IF(F34:Z34>-1,F34:Z34)),0) -> 117360 | F34: -1 | G34: 113029.298 | H34: 106508.377 | I34: 107353.6815 | J34: -1 | K34: -1 | L34: -1 | M34: -1 | N34: -1 | O34: -1 | P34: -1 | Q34: -1 | R34: -1 | S34: 152154.8242 | T34: 107752.4101 | U34: -1 | V34: -1 | W34: -1 | X34: -1 | Y34: -1 | Z34: -1 | AC34: Ropa CaballeroChaqueta de drill11
A35: Ropa Caballero | B35: Blazer para hombre. | C35: 1 | D35: 1 | E35: =ROUND(AVERAGE(IF(F35:Z35>-1,F35:Z35)),0) -> 183818 | F35: -1 | G35: 169543.947 | H35: 166887.2755 | I35: 216156.4566 | J35: -1 | K35: -1 | L35: -1 | M35: -1 | N35: -1 | O35: -1 | P35: -1 | Q35: -1 | R35: -1 | S35: 195627.6311 | T35: 170872.2828 | U35: -1 | V35: -1 | W35: -1 | X35: -1 | Y35: -1 | Z35: -1 | AC35: Ropa CaballeroBlazer para hombre.11
A36: Ropa Caballero | B36: Camisa sport o informal | C36: 1 | D36: 1 | E36: =ROUND(AVERAGE(IF(F36:Z36>-1,F36:Z36)),0) -> 63666 | F36: -1 | G36: 62794.05444 | H36: 61827.99206 | I36: 61465.71867 | J36: -1 | K36: -1 | L36: -1 | M36: -1 | N36: -1 | O36: -1 | P36: -1 | Q36: -1 | R36: -1 | S36: 69556.49107 | T36: 62685.82811 | U36: -1 | V36: -1 | W36: -1 | X36: -1 | Y36: -1 | Z36: -1 | AC36: Ropa CaballeroCamisa sport o informal11
A37: Ropa Caballero | B37: Camiseta tipo t-shirt blanca | C37: 1 | D37: 1 | E37: =ROUND(AVERAGE(IF(F37:Z37>-1,F37:Z37)),0) -> 16897 | F37: -1 | G37: 11303.38549 | H37: 12317.29529 | I37: 11471.99071 | J37: -1 | K37: -1 | L37: -1 | M37: -1 | N37: -1 | O37: -1 | P37: -1 | Q37: -1 | R37: -1 | S37: 36951.88588 | T37: 12438.05309 | U37: -1 | V37: -1 | W37: -1 | X37: -1 | Y37: -1 | Z37: -1 | AC37: Ropa CaballeroCamiseta tipo t-shirt blanca11
A38: Ropa Caballero | B38: Camiseta tipo t-shirt estampada | C38: 1 | D38: 1 | E38: =ROUND(AVERAGE(IF(F38:Z38>-1,F38:Z38)),0) -> 20867 | F38: -1 | G38: 15070.80091 | H38: 14732.45123 | I38: 20408.06769 | J38: -1 | K38: -1 | L38: -1 | M38: -1 | N38: -1 | O38: -1 | P38: -1 | Q38: -1 | R38: -1 | S38: 39125.52623 | T38: 14997.89054 | U38: -1 | V38: -1 | W38: -1 | X38: -1 | Y38: -1 | Z38: -1 | AC38: Ropa CaballeroCamiseta tipo t-shirt estampada11
A39: Ropa Caballero | B39: Camisa tipo polo | C39: 1 | D39: 1 | E39: =ROUND(AVERAGE(IF(F39:Z39>-1,F39:Z39)),0) -> 34150 | F39: -1 | G39: 31397.02722 | H39: 30430.96484 | I39: 30793.23824 | J39: -1 | K39: -1 | L39: -1 | M39: -1 | N39: -1 | O39: -1 | P39: -1 | Q39: -1 | R39: -1 | S39: 47820.08761 | T39: 30310.20705 | U39: -1 | V39: -1 | W39: -1 | X39: -1 | Y39: -1 | Z39: -1 | AC39: Ropa CaballeroCamisa tipo polo11
A40: Ropa Caballero | B40: Pantalón de dril formal | C40: 1 | D40: 1 | E40: =ROUND(AVERAGE(IF(F40:Z40>-1,F40:Z40)),0) -> 72889 | F40: -1 | G40: 69073.45988 | H40: 67865.88191 | I40: 66296.03055 | J40: -1 | K40: -1 | L40: -1 | M40: -1 | N40: -1 | O40: -1 | P40: -1 | Q40: -1 | R40: -1 | S40: 91292.89453 | T40: 69918.76446 | U40: -1 | V40: -1 | W40: -1 | X40: -1 | Y40: -1 | Z40: -1 | AC40: Ropa CaballeroPantalón de dril formal11
A41: Ropa Caballero | B41: Jean clásico | C41: 1 | D41: 1 | E41: =ROUND(AVERAGE(IF(F41:Z41>-1,F41:Z41)),0) -> 62130 | F41: -1 | G41: 56514.649 | H41: 55790.10221 | I41: 54220.25085 | J41: -1 | K41: -1 | L41: -1 | M41: -1 | N41: -1 | O41: -1 | P41: -1 | Q41: -1 | R41: -1 | S41: 89119.25419 | T41: 55005.17653 | U41: -1 | V41: -1 | W41: -1 | X41: -1 | Y41: -1 | Z41: -1 | AC41: Ropa CaballeroJean clásico11
A42: Ropa Caballero | B42: Jean informal | C42: 1 | D42: 1 | E42: =ROUND(AVERAGE(IF(F42:Z42>-1,F42:Z42)),0) -> 69979 | F42: -1 | G42: 62794.05444 | H42: 61827.99206 | I42: 60258.1407 | J42: -1 | K42: -1 | L42: -1 | M42: -1 | N42: -1 | O42: -1 | P42: -1 | Q42: -1 | R42: -1 | S42: 102161.0963 | T42: 62854.43334 | U42: -1 | V42: -1 | W42: -1 | X42: -1 | Y42: -1 | Z42: -1 | AC42: Ropa CaballeroJean informal11
A43: Ropa Caballero | B43: Bata o blusa labor | C43: 1 | D43: 1 | E43: =ROUND(AVERAGE(IF(F43:Z43>-1,F43:Z43)),0) -> 30185 | F43: -1 | G43: 11931.09819 | H43: 31638.54281 | I43: 31276.26942 | J43: -1 | K43: -1 | L43: -1 | M43: -1 | N43: -1 | O43: -1 | P43: -1 | Q43: -1 | R43: -1 | S43: 41299.16657 | T43: 34778.24554 | U43: -1 | V43: -1 | W43: -1 | X43: -1 | Y43: -1 | Z43: -1 | AC43: Ropa CaballeroBata o blusa labor11
A44: Ropa Caballero | B44: Calcetín para calzado calle | C44: 1 | D44: 1 | E44: =ROUND(AVERAGE(IF(F44:Z44>-1,F44:Z44)),0) -> 12400 | F44: -1 | G44: 11303.38549 | H44: 11109.71732 | I44: 10868.20173 | J44: -1 | K44: -1 | L44: -1 | M44: -1 | N44: -1 | O44: -1 | P44: -1 | Q44: -1 | R44: -1 | S44: 17389.12277 | T44: 11327.3092 | U44: -1 | V44: -1 | W44: -1 | X44: -1 | Y44: -1 | Z44: -1 | AC44: Ropa CaballeroCalcetín para calzado calle11
A45: Ropa Caballero | B45: Calcetín para calzado deportivo | C45: 1 | D45: 1 | E45: =ROUND(AVERAGE(IF(F45:Z45>-1,F45:Z45)),0) -> 12622 | F45: -1 | G45: 11931.09819 | H45: 11109.71732 | I45: 11351.23292 | J45: -1 | K45: -1 | L45: -1 | M45: -1 | N45: -1 | O45: -1 | P45: -1 | Q45: -1 | R45: -1 | S45: 17389.12277 | T45: 11327.3092 | U45: -1 | V45: -1 | W45: -1 | X45: -1 | Y45: -1 | Z45: -1 | AC45: Ropa CaballeroCalcetín para calzado deportivo11
A46: Ropa Caballero | B46: Pantaloncillo tipo bóxer. | C46: 1 | D46: 1 | E46: =ROUND(AVERAGE(IF(F46:Z46>-1,F46:Z46)),0) -> 19906 | F46: -1 | G46: 31397.02722 | H46: 12317.29529 | I46: 15577.75581 | J46: -1 | K46: -1 | L46: -1 | M46: -1 | N46: -1 | O46: -1 | P46: -1 | Q46: -1 | R46: -1 | S46: 28257.3245 | T46: 11978.94562 | U46: -1 | V46: -1 | W46: -1 | X46: -1 | Y46: -1 | Z46: -1 | AC46: Ropa CaballeroPantaloncillo tipo bóxer.11
A47: Ropa Caballero | B47: Gorra o cachucha | C47: 1 | D47: 1 | E47: =ROUND(AVERAGE(IF(F47:Z47>-1,F47:Z47)),0) -> 20152 | F47: -1 | G47: 18838.21633 | H47: 19562.76311 | I47: 22823.22363 | J47: -1 | K47: -1 | L47: -1 | M47: -1 | N47: -1 | O47: -1 | P47: -1 | Q47: -1 | R47: -1 | S47: 19562.76311 | T47: 19972.88393 | U47: -1 | V47: -1 | W47: -1 | X47: -1 | Y47: -1 | Z47: -1 | AC47: Ropa CaballeroGorra o cachucha11
A48: Ropa Caballero | B48: Tula / Morral | C48: 1 | D48: 1 | E48: =ROUND(AVERAGE(IF(F48:Z48>-1,F48:Z48)),0) -> 76012 | F48: -1 | G48: 71585.44991 | H48: 70281.03785 | I48: 70039.52226 | J48: -1 | K48: -1 | L48: -1 | M48: -1 | N48: -1 | O48: -1 | P48: -1 | Q48: -1 | R48: -1 | S48: 95640.17522 | T48: 72515.0571 | U48: -1 | V48: -1 | W48: -1 | X48: -1 | Y48: -1 | Z48: -1 | AC48: Ropa CaballeroTula / Morral11
A49: Ropa Caballero | B49: Logo corporativo (tamaño bolsillo) | C49: 1 | D49: 1 | E49: =ROUND(AVERAGE(IF(F49:Z49>-1,F49:Z49)),0) -> 7019 | F49: -1 | G49: 6279.405444 | H49: 7003.952226 | I49: 5917.132053 | J49: -1 | K49: -1 | L49: -1 | M49: -1 | N49: -1 | O49: -1 | P49: -1 | Q49: -1 | R49: -1 | S49: 8694.561384 | T49: 7197.620391 | U49: -1 | V49: -1 | W49: -1 | X49: -1 | Y49: -1 | Z49: -1 | AC49: Ropa CaballeroLogo corporativo (tamaño bolsillo)11
A50: Ropa Caballero | B50: Logo corporativo (tamaño espalda) | C50: 1 | D50: 1 | E50: =ROUND(AVERAGE(IF(F50:Z50>-1,F50:Z50)),0) -> 12834 | F50: -1 | G50: 12558.81089 | H50: 12317.29529 | I50: 11955.0219 | J50: -1 | K50: -1 | L50: -1 | M50: -1 | N50: -1 | O50: -1 | P50: -1 | Q50: -1 | R50: -1 | S50: 15215.48242 | T50: 12123.62713 | U50: -1 | V50: -1 | W50: -1 | X50: -1 | Y50: -1 | Z50: -1 | AC50: Ropa CaballeroLogo corporativo (tamaño espalda)11
A51: Calzado Dama | B51: Calzado de calle para dama. | C51: 1 | D51: 1 | E51: =ROUND(AVERAGE(IF(F51:Z51>-1,F51:Z51)),0) -> 109846 | F51: -1 | G51: -1 | H51: 88394.7074 | I51: 96485.4798 | J51: 114719.9071 | K51: -1 | L51: -1 | M51: -1 | N51: -1 | O51: -1 | P51: -1 | Q51: -1 | R51: -1 | S51: 106266.8614 | T51: -1 | U51: -1 | V51: 144788.5986 | W51: -1 | X51: 92681.6092 | Y51: 125588.1089 | Z51: -1 | AC51: Calzado DamaCalzado de calle para dama.11
A52: Calzado Dama | B52: Calzado casual para dama. | C52: 1 | D52: 1 | E52: =ROUND(AVERAGE(IF(F52:Z52>-1,F52:Z52)),0) -> 107164 | F52: -1 | G52: -1 | H52: 89119.25419 | I52: 89964.55876 | J52: 114719.9071 | K52: -1 | L52: -1 | M52: -1 | N52: -1 | O52: -1 | P52: -1 | Q52: -1 | R52: -1 | S52: 106266.8614 | T52: -1 | U52: -1 | V52: 144788.5986 | W52: -1 | X52: 90568.34775 | Y52: 114719.9071 | Z52: -1 | AC52: Calzado DamaCalzado casual para dama.11
A53: Calzado Dama | B53: Calzado de calle para dama clima cálido. | C53: 1 | D53: 1 | E53: =ROUND(AVERAGE(IF(F53:Z53>-1,F53:Z53)),0) -> 109106 | F53: -1 | G53: -1 | H53: 89964.55876 | I53: 96485.4798 | J53: 114719.9071 | K53: -1 | L53: -1 | M53: -1 | N53: -1 | O53: -1 | P53: -1 | Q53: -1 | R53: -1 | S53: 106266.8614 | T53: -1 | U53: -1 | V53: 144788.5986 | W53: -1 | X53: 93177.17185 | Y53: 118342.6411 | Z53: -1 | AC53: Calzado DamaCalzado de calle para dama clima cálido.11
A54: Calzado Dama | B54: Cinturón. | C54: 1 | D54: 1 | E54: =ROUND(AVERAGE(IF(F54:Z54>-1,F54:Z54)),0) -> 40016 | F54: -1 | G54: -1 | H54: 30672.48044 | I54: 33691.42536 | J54: 42265.22895 | K54: -1 | L54: -1 | M54: -1 | N54: -1 | O54: -1 | P54: -1 | Q54: -1 | R54: -1 | S54: 36227.3391 | T54: -1 | U54: -1 | V54: 42144.47115 | W54: -1 | X54: 32315.24217 | Y54: 62794.05444 | Z54: -1 | AC54: Calzado DamaCinturón.11
A55: Calzado Caballero | B55: Calzado de calle para caballero formal. | C55: 1 | D55: 1 | E55: =ROUND(AVERAGE(IF(F55:Z55>-1,F55:Z55)),0) -> 116048 | F55: -1 | G55: -1 | H55: 98055.33116 | I55: 99021.39354 | J55: -1 | K55: -1 | L55: -1 | M55: -1 | N55: -1 | O55: -1 | P55: -1 | Q55: -1 | R55: -1 | S55: 111097.1732 | T55: -1 | U55: -1 | V55: 156864.3783 | W55: 120154.008 | X55: 102764.8852 | Y55: 124380.5309 | Z55: -1 | AC55: Calzado CaballeroCalzado de calle para caballero formal.11
A56: Calzado Caballero | B56: Calzado deportivo para caballero | C56: 1 | D56: 1 | E56: =ROUND(AVERAGE(IF(F56:Z56>-1,F56:Z56)),0) -> 117032 | F56: -1 | G56: -1 | H56: 106508.377 | I56: 105663.0724 | J56: -1 | K56: -1 | L56: -1 | M56: -1 | N56: -1 | O56: -1 | P56: -1 | Q56: -1 | R56: -1 | S56: 111097.1732 | T56: -1 | U56: -1 | V56: 156864.3783 | W56: 111700.9622 | X56: 111459.4466 | Y56: 115927.4851 | Z56: -1 | AC56: Calzado CaballeroCalzado deportivo para caballero11
A57: Calzado Caballero | B57: Calzado casual para caballero. | C57: 1 | D57: 1 | E57: =ROUND(AVERAGE(IF(F57:Z57>-1,F57:Z57)),0) -> 116411 | F57: -1 | G57: -1 | H57: 106508.377 | I57: 96485.4798 | J57: -1 | K57: -1 | L57: -1 | M57: -1 | N57: -1 | O57: -1 | P57: -1 | Q57: -1 | R57: -1 | S57: 111097.1732 | T57: -1 | U57: -1 | V57: 156864.3783 | W57: 114116.1182 | X57: 111459.4466 | Y57: 118342.6411 | Z57: -1 | AC57: Calzado CaballeroCalzado casual para caballero.11
A58: Calzado Caballero | B58: Cinturón | C58: 1 | D58: 1 | E58: =ROUND(AVERAGE(IF(F58:Z58>-1,F58:Z58)),0) -> 41832 | F58: -1 | G58: -1 | H58: 29223.38687 | I58: 33691.42536 | J58: -1 | K58: -1 | L58: -1 | M58: -1 | N58: -1 | O58: -1 | P58: -1 | Q58: -1 | R58: -1 | S58: 36227.3391 | T58: -1 | U58: -1 | V58: 42144.47115 | W58: 57963.74256 | X58: 30780.70677 | Y58: 62794.05444 | Z58: -1 | AC58: Calzado CaballeroCinturón11
A59: Ropa Dama | B59: Sastre formal de dos piezas para dama: chaqueta y falda o pantalón (Opción Uno). | C59: 1 | D59: 2 | E59: =ROUND(AVERAGE(IF(F59:Z59>-1,F59:Z59)),0) -> 227690 | F59: 241757.1096 | G59: 213499.7851 | H59: 209514.7778 | I59: 228232.2363 | J59: 227024.6584 | K59: -1 | L59: 258892.1853 | M59: -1 | N59: -1 | O59: -1 | P59: -1 | Q59: -1 | R59: -1 | S59: -1 | T59: 214912.4235 | U59: -1 | V59: -1 | W59: -1 | X59: -1 | Y59: -1 | Z59: -1 | AC59: Ropa DamaSastre formal de dos piezas para dama: chaqueta y falda o pantalón (Opción Uno).12
A60: Ropa Dama | B60: Sastre formal de dos piezas para dama: chaqueta y falda o pantalón (Opción Dos). | C60: 1 | D60: 2 | E60: =ROUND(AVERAGE(IF(F60:Z60>-1,F60:Z60)),0) -> 206168 | F60: 179192.0393 | G60: 210987.7951 | H60: 207099.6219 | I60: 202873.099 | J60: 202873.099 | K60: -1 | L60: 225817.0804 | M60: -1 | N60: -1 | O60: -1 | P60: -1 | Q60: -1 | R60: -1 | S60: -1 | T60: 214332.5582 | U60: -1 | V60: -1 | W60: -1 | X60: -1 | Y60: -1 | Z60: -1 | AC60: Ropa DamaSastre formal de dos piezas para dama: chaqueta y falda o pantalón (Opción Dos).12
A61: Ropa Dama | B61: Sastre formal de tres piezas para dama: chaqueta, chaleco y falda o pantalón. | C61: 1 | D61: 2 | E61: =ROUND(AVERAGE(IF(F61:Z61>-1,F61:Z61)),0) -> 294235 | F61: 363964.0002 | G61: 270014.4341 | H61: 265063.3644 | I61: 295856.6027 | J61: 265667.1534 | K61: -1 | L61: 332083.9417 | M61: -1 | N61: -1 | O61: -1 | P61: -1 | Q61: -1 | R61: -1 | S61: -1 | T61: 266995.4892 | U61: -1 | V61: -1 | W61: -1 | X61: -1 | Y61: -1 | Z61: -1 | AC61: Ropa DamaSastre formal de tres piezas para dama: chaqueta, chaleco y falda o pantalón.12
A62: Ropa Dama | B62: Blazer para dama. | C62: 1 | D62: 2 | E62: =ROUND(AVERAGE(IF(F62:Z62>-1,F62:Z62)),0) -> 181525 | F62: 164314.9065 | G62: 194661.5688 | H62: 191401.1082 | I62: 199250.365 | J62: 147324.5123 | K62: -1 | L62: 179325.3285 | M62: -1 | N62: -1 | O62: -1 | P62: -1 | Q62: -1 | R62: -1 | S62: -1 | T62: 194396.1295 | U62: -1 | V62: -1 | W62: -1 | X62: -1 | Y62: -1 | Z62: -1 | AC62: Ropa DamaBlazer para dama.12
A63: Ropa Dama | B63: Blusa formal manga larga para dama. | C63: 1 | D63: 2 | E63: =ROUND(AVERAGE(IF(F63:Z63>-1,F63:Z63)),0) -> 70582 | F63: 63494.67751 | G63: 71023.81223 | H63: 69435.73327 | I63: 69435.73327 | J63: 57963.74256 | K63: -1 | L63: 91655.16792 | M63: -1 | N63: -1 | O63: -1 | P63: -1 | Q63: -1 | R63: -1 | S63: -1 | T63: 71065.96353 | U63: -1 | V63: -1 | W63: -1 | X63: -1 | Y63: -1 | Z63: -1 | AC63: Ropa DamaBlusa formal manga larga para dama.12
A64: Ropa Dama | B64: Blusa formal manga corta para dama. | C64: 1 | D64: 2 | E64: =ROUND(AVERAGE(IF(F64:Z64>-1,F64:Z64)),0) -> 67014 | F64: 62166.34174 | G64: 68509.54376 | H64: 67020.57733 | I64: 67020.57733 | J64: 55548.58662 | K64: -1 | L64: 82356.81755 | M64: -1 | N64: -1 | O64: -1 | P64: -1 | Q64: -1 | R64: -1 | S64: -1 | T64: 66477.16725 | U64: -1 | V64: -1 | W64: -1 | X64: -1 | Y64: -1 | Z64: -1 | AC64: Ropa DamaBlusa formal manga corta para dama.12
A65: Ropa Dama | B65: Blusa sport o informal para dama. | C65: 1 | D65: 2 | E65: =ROUND(AVERAGE(IF(F65:Z65>-1,F65:Z65)),0) -> 68894 | F65: 74386.80295 | G65: 67639.17624 | H65: 67020.57733 | I65: 65812.99936 | J65: 57963.74256 | K65: -1 | L65: 82356.81755 | M65: -1 | N65: -1 | O65: -1 | P65: -1 | Q65: -1 | R65: -1 | S65: -1 | T65: 67080.95623 | U65: -1 | V65: -1 | W65: -1 | X65: -1 | Y65: -1 | Z65: -1 | AC65: Ropa DamaBlusa sport o informal para dama.12
A66: Ropa Dama | B66: Blusa para dama. | C66: 1 | D66: 2 | E66: =ROUND(AVERAGE(IF(F66:Z66>-1,F66:Z66)),0) -> 66877 | F66: 55790.10221 | G66: 72840.87531 | H66: 71850.88922 | I66: 70884.82684 | J66: 57963.74256 | K66: -1 | L66: 73058.46718 | M66: -1 | N66: -1 | O66: -1 | P66: -1 | Q66: -1 | R66: -1 | S66: -1 | T66: 65752.62047 | U66: -1 | V66: -1 | W66: -1 | X66: -1 | Y66: -1 | Z66: -1 | AC66: =A66&B66&C66&D66 -> Ropa DamaBlusa para dama.12
A67: Ropa Dama | B67: Chaqueta casual o sport. | C67: 1 | D67: 2 | E67: =ROUND(AVERAGE(IF(F67:Z67>-1,F67:Z67)),0) -> 124123 | F67: 110118.5794 | G67: 114284.7234 | H67: 111700.9622 | I67: 119550.219 | J67: 135248.7326 | K67: -1 | L67: 162056.9636 | M67: -1 | N67: -1 | O67: -1 | P67: -1 | Q67: -1 | R67: -1 | S67: -1 | T67: 115903.5614 | U67: -1 | V67: -1 | W67: -1 | X67: -1 | Y67: -1 | Z67: -1 | AC67: Ropa DamaChaqueta casual o sport.12
A68: Ropa Dama | B68: Chaqueta de jean | C68: 1 | D68: 2 | E68: =ROUND(AVERAGE(IF(F68:Z68>-1,F68:Z68)),0) -> 125671 | F68: 159400.292 | G68: 113029.298 | H68: 138267.6776 | I68: 107474.4393 | J68: 123172.9529 | K68: -1 | L68: 100953.5183 | M68: -1 | N68: -1 | O68: -1 | P68: -1 | Q68: -1 | R68: -1 | S68: -1 | T68: 137398.4493 | U68: -1 | V68: -1 | W68: -1 | X68: -1 | Y68: -1 | Z68: -1 | AC68: Ropa DamaChaqueta de jean12
A69: Ropa Dama | B69: Falda | C69: 1 | D69: 2 | E69: =ROUND(AVERAGE(IF(F69:Z69>-1,F69:Z69)),0) -> 73188 | F69: 85013.48909 | G69: 69073.45988 | H69: 68228.1553 | I69: 67020.57733 | J69: 60378.8985 | K69: -1 | L69: 92983.50369 | M69: -1 | N69: -1 | O69: -1 | P69: -1 | Q69: -1 | R69: -1 | S69: -1 | T69: 69616.86997 | U69: -1 | V69: -1 | W69: -1 | X69: -1 | Y69: -1 | Z69: -1 | AC69: Ropa DamaFalda12
A70: Ropa Dama | B70: Gabán o abrigo para dama | C70: 1 | D70: 2 | E70: =ROUND(AVERAGE(IF(F70:Z70>-1,F70:Z70)),0) -> 202459 | F70: 236443.7665 | G70: 214755.2105 | H70: 210722.3558 | I70: 206495.8329 | J70: 193212.4752 | K70: -1 | L70: 146116.9344 | M70: -1 | N70: -1 | O70: -1 | P70: -1 | Q70: -1 | R70: -1 | S70: -1 | T70: 209466.9304 | U70: -1 | V70: -1 | W70: -1 | X70: -1 | Y70: -1 | Z70: -1 | AC70: Ropa DamaGabán o abrigo para dama12
A71: Ropa Dama | B71: Pantalón formal | C71: 1 | D71: 2 | E71: =ROUND(AVERAGE(IF(F71:Z71>-1,F71:Z71)),0) -> 85458 | F71: 86341.82485 | G71: 83417.43556 | H71: 81511.51298 | I71: 81994.54416 | J71: 74869.83414 | K71: -1 | L71: 104938.5256 | M71: -1 | N71: -1 | O71: -1 | P71: -1 | Q71: -1 | R71: -1 | S71: -1 | T71: 85134.24688 | U71: -1 | V71: -1 | W71: -1 | X71: -1 | Y71: -1 | Z71: -1 | AC71: Ropa DamaPantalón formal12
A72: Ropa Dama | B72: Pantalón drill formal | C72: 1 | D72: 2 | E72: =ROUND(AVERAGE(IF(F72:Z72>-1,F72:Z72)),0) -> 80614 | F72: 85013.48909 | G72: 75352.86533 | H72: 74266.04515 | I72: 72333.9204 | J72: 96606.2376 | K72: -1 | L72: 86341.82485 | M72: -1 | N72: -1 | O72: -1 | P72: -1 | Q72: -1 | R72: -1 | S72: -1 | T72: 74386.80295 | U72: -1 | V72: -1 | W72: -1 | X72: -1 | Y72: -1 | Z72: -1 | AC72: Ropa DamaPantalón drill formal12
A73: Ropa Dama | B73: Jean clásico | C73: 1 | D73: 2 | E73: =ROUND(AVERAGE(IF(F73:Z73>-1,F73:Z73)),0) -> 72538 | F73: 86341.82485 | G73: 60282.06442 | H73: 59775.10951 | I73: 58157.41072 | J73: 96606.2376 | K73: -1 | L73: 86341.82485 | M73: -1 | N73: -1 | O73: -1 | P73: -1 | Q73: -1 | R73: -1 | S73: -1 | T73: 60258.1407 | U73: -1 | V73: -1 | W73: -1 | X73: -1 | Y73: -1 | Z73: -1 | AC73: Ropa DamaJean clásico12
A74: Ropa Dama | B74: Jean informal | C74: 1 | D74: 2 | E74: =ROUND(AVERAGE(IF(F74:Z74>-1,F74:Z74)),0) -> 90175 | F74: 126191.8979 | G74: 72840.87531 | H74: 71850.88922 | I74: 69918.76446 | J74: 106266.8614 | K74: -1 | L74: 112908.5402 | M74: -1 | N74: -1 | O74: -1 | P74: -1 | Q74: -1 | R74: -1 | S74: -1 | T74: 71247.10023 | U74: -1 | V74: -1 | W74: -1 | X74: -1 | Y74: -1 | Z74: -1 | AC74: Ropa DamaJean informal12
A75: Ropa Dama | B75: Camisa tipo polo | C75: 1 | D75: 2 | E75: =ROUND(AVERAGE(IF(F75:Z75>-1,F75:Z75)),0) -> 36900 | F75: 38521.73724 | G75: 31397.02722 | H75: 30793.23824 | I75: 30793.23824 | J75: 43472.80692 | K75: -1 | L75: 51805.09491 | M75: -1 | N75: -1 | O75: -1 | P75: -1 | Q75: -1 | R75: -1 | S75: -1 | T75: 31517.78502 | U75: -1 | V75: -1 | W75: -1 | X75: -1 | Y75: -1 | Z75: -1 | AC75: Ropa DamaCamisa tipo polo12
A76: Ropa Dama | B76: Camiseta tipo T-shirt básica | C76: 1 | D76: 2 | E76: =ROUND(AVERAGE(IF(F76:Z76>-1,F76:Z76)),0) -> 20815 | F76: 17932.53285 | G76: 16326.22631 | H76: 16302.30259 | I76: 15577.75581 | J76: 28981.87128 | K76: -1 | L76: 34403.44068 | M76: -1 | N76: -1 | O76: -1 | P76: -1 | Q76: -1 | R76: -1 | S76: -1 | T76: 16181.5448 | U76: -1 | V76: -1 | W76: -1 | X76: -1 | Y76: -1 | Z76: -1 | AC76: Ropa DamaCamiseta tipo T-shirt básica12
A77: Ropa Dama | B77: Bata o blusa labor | C77: 1 | D77: 2 | E77: =ROUND(AVERAGE(IF(F77:Z77>-1,F77:Z77)),0) -> 42298 | F77: 46491.75184 | G77: 31397.02722 | H77: 32000.8162 | I77: 30068.69145 | J77: 43472.80692 | K77: -1 | L77: 78238.52099 | M77: -1 | N77: -1 | O77: -1 | P77: -1 | Q77: -1 | R77: -1 | S77: -1 | T77: 34415.97214 | U77: -1 | V77: -1 | W77: -1 | X77: -1 | Y77: -1 | Z77: -1 | AC77: Ropa DamaBata o blusa labor12
A78: Ropa Dama | B78: Pashmina | C78: 1 | D78: 2 | E78: =ROUND(AVERAGE(IF(F78:Z78>-1,F78:Z78)),0) -> 29482 | F78: 11955.0219 | G78: 25117.62178 | H78: 25962.92635 | I78: 24151.5594 | J78: 28981.87128 | K78: -1 | L78: 61103.44528 | M78: -1 | N78: -1 | O78: -1 | P78: -1 | Q78: -1 | R78: -1 | S78: -1 | T78: 29102.62908 | U78: -1 | V78: -1 | W78: -1 | X78: -1 | Y78: -1 | Z78: -1 | AC78: Ropa DamaPashmina12
A79: Ropa Dama | B79: Vestido | C79: 1 | D79: 2 | E79: =ROUND(AVERAGE(IF(F79:Z79>-1,F79:Z79)),0) -> 152483 | F79: 96968.51099 | G79: 163264.5415 | H79: 160004.081 | I79: 158796.5031 | J79: 156985.1361 | K79: -1 | L79: 172683.6497 | M79: -1 | N79: -1 | O79: -1 | P79: -1 | Q79: -1 | R79: -1 | S79: -1 | T79: 158675.7453 | U79: -1 | V79: -1 | W79: -1 | X79: -1 | Y79: -1 | Z79: -1 | AC79: Ropa DamaVestido12
A80: Ropa Dama | B80: Logo corporativo (tamaño bolsillo) | C80: 1 | D80: 2 | E80: =ROUND(AVERAGE(IF(F80:Z80>-1,F80:Z80)),0) -> 7518 | F80: 4830.31188 | G80: 6279.405444 | H80: 7003.952226 | I80: 5917.132053 | J80: 12075.7797 | K80: -1 | L80: 9032.91106 | M80: -1 | N80: -1 | O80: -1 | P80: -1 | Q80: -1 | R80: -1 | S80: -1 | T80: 7486.983414 | U80: -1 | V80: -1 | W80: -1 | X80: -1 | Y80: -1 | Z80: -1 | AC80: Ropa DamaLogo corporativo (tamaño bolsillo)12
A81: Ropa Dama | B81: Logo corporativo (tamaño espalda) | C81: 1 | D81: 2 | E81: =ROUND(AVERAGE(IF(F81:Z81>-1,F81:Z81)),0) -> 13593 | F81: 14490.93564 | G81: 12935.8942 | H81: 12317.29529 | I81: 11955.0219 | J81: 16906.09158 | K81: -1 | L81: 14346.25413 | M81: -1 | N81: -1 | O81: -1 | P81: -1 | Q81: -1 | R81: -1 | S81: -1 | T81: 12196.5375 | U81: -1 | V81: -1 | W81: -1 | X81: -1 | Y81: -1 | Z81: -1 | AC81: Ropa DamaLogo corporativo (tamaño espalda)12
A82: Ropa Caballero | B82: Vestido formal de dos piezas para hombre: saco y pantalón (Opción uno). | C82: 1 | D82: 2 | E82: =ROUND(AVERAGE(IF(F82:Z82>-1,F82:Z82)),0) -> 279904 | F82: -1 | G82: 238617.4069 | H82: 233304.0638 | I82: 301773.7347 | J82: -1 | K82: -1 | L82: -1 | M82: -1 | N82: -1 | O82: -1 | P82: -1 | Q82: -1 | R82: -1 | S82: 389081.6219 | T82: 236745.661 | U82: -1 | V82: -1 | W82: -1 | X82: -1 | Y82: -1 | Z82: -1 | AC82: Ropa CaballeroVestido formal de dos piezas para hombre: saco y pantalón (Opción uno).12
A83: Ropa Caballero | B83: Vestido formal de dos piezas para hombre: saco y pantalón (Opción dos). | C83: 1 | D83: 2 | E83: =ROUND(AVERAGE(IF(F83:Z83>-1,F83:Z83)),0) -> 256881 | F83: -1 | G83: 226058.596 | H83: 221228.2841 | I83: 264459.5754 | J83: -1 | K83: -1 | L83: -1 | M83: -1 | N83: -1 | O83: -1 | P83: -1 | Q83: -1 | R83: -1 | S83: 349956.0957 | T83: 222701.3014 | U83: -1 | V83: -1 | W83: -1 | X83: -1 | Y83: -1 | Z83: -1 | AC83: Ropa CaballeroVestido formal de dos piezas para hombre: saco y pantalón (Opción dos).12
A84: Ropa Caballero | B84: Camisa formal manga larga (Tipo uno, recomendable clima cálido). | C84: 1 | D84: 2 | E84: =ROUND(AVERAGE(IF(F84:Z84>-1,F84:Z84)),0) -> 67045 | F84: -1 | G84: 62794.05444 | H84: 61827.99206 | I84: 62069.50766 | J84: -1 | K84: -1 | L84: -1 | M84: -1 | N84: -1 | O84: -1 | P84: -1 | Q84: -1 | R84: -1 | S84: 85858.79367 | T84: 62673.29664 | U84: -1 | V84: -1 | W84: -1 | X84: -1 | Y84: -1 | Z84: -1 | AC84: Ropa CaballeroCamisa formal manga larga (Tipo uno, recomendable clima cálido).12
A85: Ropa Caballero | B85: Camisa formal manga corta (Tipo uno, recomendable clima cálido). | C85: 1 | D85: 2 | E85: =ROUND(AVERAGE(IF(F85:Z85>-1,F85:Z85)),0) -> 61118 | F85: -1 | G85: 56514.649 | H85: 55790.10221 | I85: 56152.3756 | J85: -1 | K85: -1 | L85: -1 | M85: -1 | N85: -1 | O85: -1 | P85: -1 | Q85: -1 | R85: -1 | S85: 81511.51298 | T85: 55621.49699 | U85: -1 | V85: -1 | W85: -1 | X85: -1 | Y85: -1 | Z85: -1 | AC85: Ropa CaballeroCamisa formal manga corta (Tipo uno, recomendable clima cálido).12
A86: Ropa Caballero | B86: Camisa formal manga larga para caballero (Tipo dos). | C86: 1 | D86: 2 | E86: =ROUND(AVERAGE(IF(F86:Z86>-1,F86:Z86)),0) -> 69025 | F86: -1 | G86: 62794.05444 | H86: 61827.99206 | I86: 62190.26545 | J86: -1 | K86: -1 | L86: -1 | M86: -1 | N86: -1 | O86: -1 | P86: -1 | Q86: -1 | R86: -1 | S86: 95640.17522 | T86: 62673.29664 | U86: -1 | V86: -1 | W86: -1 | X86: -1 | Y86: -1 | Z86: -1 | AC86: Ropa CaballeroCamisa formal manga larga para caballero (Tipo dos).12
A87: Ropa Caballero | B87: Camisa formal manga corta para caballero (Tipo dos). | C87: 1 | D87: 2 | E87: =ROUND(AVERAGE(IF(F87:Z87>-1,F87:Z87)),0) -> 62640 | F87: -1 | G87: 56514.649 | H87: 55790.10221 | I87: 56152.3756 | J87: -1 | K87: -1 | L87: -1 | M87: -1 | N87: -1 | O87: -1 | P87: -1 | Q87: -1 | R87: -1 | S87: 89119.25419 | T87: 55621.49699 | U87: -1 | V87: -1 | W87: -1 | X87: -1 | Y87: -1 | Z87: -1 | AC87: Ropa CaballeroCamisa formal manga corta para caballero (Tipo dos).12
A88: Ropa Caballero | B88: Corbata | C88: 1 | D88: 2 | E88: =ROUND(AVERAGE(IF(F88:Z88>-1,F88:Z88)),0) -> 24879 | F88: -1 | G88: 18838.21633 | H88: 18355.18514 | I88: 22823.22363 | J88: -1 | K88: -1 | L88: -1 | M88: -1 | N88: -1 | O88: -1 | P88: -1 | Q88: -1 | R88: -1 | S88: 39125.52623 | T88: 25250.91104 | U88: -1 | V88: -1 | W88: -1 | X88: -1 | Y88: -1 | Z88: -1 | AC88: Ropa CaballeroCorbata12
A89: Ropa Caballero | B89: Chaqueta casual o sport. | C89: 1 | D89: 2 | E89: =ROUND(AVERAGE(IF(F89:Z89>-1,F89:Z89)),0) -> 114715 | F89: -1 | G89: 96703.07168 | H89: 95640.17522 | I89: 107957.4705 | J89: -1 | K89: -1 | L89: -1 | M89: -1 | N89: -1 | O89: -1 | P89: -1 | Q89: -1 | R89: -1 | S89: 176064.868 | T89: 97210.02658 | U89: -1 | V89: -1 | W89: -1 | X89: -1 | Y89: -1 | Z89: -1 | AC89: Ropa CaballeroChaqueta casual o sport.12
A90: Ropa Caballero | B90: Chaqueta de jean | C90: 1 | D90: 2 | E90: =ROUND(AVERAGE(IF(F90:Z90>-1,F90:Z90)),0) -> 118215 | F90: -1 | G90: 109261.8826 | H90: 111338.6888 | I90: 107353.6815 | J90: -1 | K90: -1 | L90: -1 | M90: -1 | N90: -1 | O90: -1 | P90: -1 | Q90: -1 | R90: -1 | S90: 152154.8242 | T90: 110963.884 | U90: -1 | V90: -1 | W90: -1 | X90: -1 | Y90: -1 | Z90: -1 | AC90: Ropa CaballeroChaqueta de jean12
A91: Ropa Caballero | B91: Chaqueta de drill | C91: 1 | D91: 2 | E91: =ROUND(AVERAGE(IF(F91:Z91>-1,F91:Z91)),0) -> 117360 | F91: -1 | G91: 113029.298 | H91: 106508.377 | I91: 107353.6815 | J91: -1 | K91: -1 | L91: -1 | M91: -1 | N91: -1 | O91: -1 | P91: -1 | Q91: -1 | R91: -1 | S91: 152154.8242 | T91: 107752.4101 | U91: -1 | V91: -1 | W91: -1 | X91: -1 | Y91: -1 | Z91: -1 | AC91: Ropa CaballeroChaqueta de drill12
A92: Ropa Caballero | B92: Blazer para hombre. | C92: 1 | D92: 2 | E92: =ROUND(AVERAGE(IF(F92:Z92>-1,F92:Z92)),0) -> 183818 | F92: -1 | G92: 169543.947 | H92: 166887.2755 | I92: 216156.4566 | J92: -1 | K92: -1 | L92: -1 | M92: -1 | N92: -1 | O92: -1 | P92: -1 | Q92: -1 | R92: -1 | S92: 195627.6311 | T92: 170872.2828 | U92: -1 | V92: -1 | W92: -1 | X92: -1 | Y92: -1 | Z92: -1 | AC92: Ropa CaballeroBlazer para hombre.12
A93: Ropa Caballero | B93: Camisa sport o informal | C93: 1 | D93: 2 | E93: =ROUND(AVERAGE(IF(F93:Z93>-1,F93:Z93)),0) -> 63666 | F93: -1 | G93: 62794.05444 | H93: 61827.99206 | I93: 61465.71867 | J93: -1 | K93: -1 | L93: -1 | M93: -1 | N93: -1 | O93: -1 | P93: -1 | Q93: -1 | R93: -1 | S93: 69556.49107 | T93: 62685.82811 | U93: -1 | V93: -1 | W93: -1 | X93: -1 | Y93: -1 | Z93: -1 | AC93: Ropa CaballeroCamisa sport o informal12
A94: Ropa Caballero | B94: Camiseta tipo t-shirt blanca | C94: 1 | D94: 2 | E94: =ROUND(AVERAGE(IF(F94:Z94>-1,F94:Z94)),0) -> 16897 | F94: -1 | G94: 11303.38549 | H94: 12317.29529 | I94: 11471.99071 | J94: -1 | K94: -1 | L94: -1 | M94: -1 | N94: -1 | O94: -1 | P94: -1 | Q94: -1 | R94: -1 | S94: 36951.88588 | T94: 12438.05309 | U94: -1 | V94: -1 | W94: -1 | X94: -1 | Y94: -1 | Z94: -1 | AC94: Ropa CaballeroCamiseta tipo t-shirt blanca12
A95: Ropa Caballero | B95: Camiseta tipo t-shirt estampada | C95: 1 | D95: 2 | E95: =ROUND(AVERAGE(IF(F95:Z95>-1,F95:Z95)),0) -> 20867 | F95: -1 | G95: 15070.80091 | H95: 14732.45123 | I95: 20408.06769 | J95: -1 | K95: -1 | L95: -1 | M95: -1 | N95: -1 | O95: -1 | P95: -1 | Q95: -1 | R95: -1 | S95: 39125.52623 | T95: 14997.89054 | U95: -1 | V95: -1 | W95: -1 | X95: -1 | Y95: -1 | Z95: -1 | AC95: Ropa CaballeroCamiseta tipo t-shirt estampada12
A96: Ropa Caballero | B96: Camisa tipo polo | C96: 1 | D96: 2 | E96: =ROUND(AVERAGE(IF(F96:Z96>-1,F96:Z96)),0) -> 34150 | F96: -1 | G96: 31397.02722 | H96: 30430.96484 | I96: 30793.23824 | J96: -1 | K96: -1 | L96: -1 | M96: -1 | N96: -1 | O96: -1 | P96: -1 | Q96: -1 | R96: -1 | S96: 47820.08761 | T96: 30310.20705 | U96: -1 | V96: -1 | W96: -1 | X96: -1 | Y96: -1 | Z96: -1 | AC96: Ropa CaballeroCamisa tipo polo12
A97: Ropa Caballero | B97: Pantalón de dril formal | C97: 1 | D97: 2 | E97: =ROUND(AVERAGE(IF(F97:Z97>-1,F97:Z97)),0) -> 72889 | F97: -1 | G97: 69073.45988 | H97: 67865.88191 | I97: 66296.03055 | J97: -1 | K97: -1 | L97: -1 | M97: -1 | N97: -1 | O97: -1 | P97: -1 | Q97: -1 | R97: -1 | S97: 91292.89453 | T97: 69918.76446 | U97: -1 | V97: -1 | W97: -1 | X97: -1 | Y97: -1 | Z97: -1 | AC97: Ropa CaballeroPantalón de dril formal12
A98: Ropa Caballero | B98: Jean clásico | C98: 1 | D98: 2 | E98: =ROUND(AVERAGE(IF(F98:Z98>-1,F98:Z98)),0) -> 62130 | F98: -1 | G98: 56514.649 | H98: 55790.10221 | I98: 54220.25085 | J98: -1 | K98: -1 | L98: -1 | M98: -1 | N98: -1 | O98: -1 | P98: -1 | Q98: -1 | R98: -1 | S98: 89119.25419 | T98: 55005.17653 | U98: -1 | V98: -1 | W98: -1 | X98: -1 | Y98: -1 | Z98: -1 | AC98: Ropa CaballeroJean clásico12
A99: Ropa Caballero | B99: Jean informal | C99: 1 | D99: 2 | E99: =ROUND(AVERAGE(IF(F99:Z99>-1,F99:Z99)),0) -> 69979 | F99: -1 | G99: 62794.05444 | H99: 61827.99206 | I99: 60258.1407 | J99: -1 | K99: -1 | L99: -1 | M99: -1 | N99: -1 | O99: -1 | P99: -1 | Q99: -1 | R99: -1 | S99: 102161.0963 | T99: 62854.43334 | U99: -1 | V99: -1 | W99: -1 | X99: -1 | Y99: -1 | Z99: -1 | AC99: Ropa CaballeroJean informal12
A100: Ropa Caballero | B100: Bata o blusa labor | C100: 1 | D100: 2 | E100: =ROUND(AVERAGE(IF(F100:Z100>-1,F100:Z100)),0) -> 30185 | F100: -1 | G100: 11931.09819 | H100: 31638.54281 | I100: 31276.26942 | J100: -1 | K100: -1 | L100: -1 | M100: -1 | N100: -1 | O100: -1 | P100: -1 | Q100: -1 | R100: -1 | S100: 41299.16657 | T100: 34778.24554 | U100: -1 | V100: -1 | W100: -1 | X100: -1 | Y100: -1 | Z100: -1 | AC100: Ropa CaballeroBata o blusa labor12
A101: Ropa Caballero | B101: Calcetín para calzado calle | C101: 1 | D101: 2 | E101: =ROUND(AVERAGE(IF(F101:Z101>-1,F101:Z101)),0) -> 12400 | F101: -1 | G101: 11303.38549 | H101: 11109.71732 | I101: 10868.20173 | J101: -1 | K101: -1 | L101: -1 | M101: -1 | N101: -1 | O101: -1 | P101: -1 | Q101: -1 | R101: -1 | S101: 17389.12277 | T101: 11327.3092 | U101: -1 | V101: -1 | W101: -1 | X101: -1 | Y101: -1 | Z101: -1 | AC101: Ropa CaballeroCalcetín para calzado calle12
A102: Ropa Caballero | B102: Calcetín para calzado deportivo | C102: 1 | D102: 2 | E102: =ROUND(AVERAGE(IF(F102:Z102>-1,F102:Z102)),0) -> 12622 | F102: -1 | G102: 11931.09819 | H102: 11109.71732 | I102: 11351.23292 | J102: -1 | K102: -1 | L102: -1 | M102: -1 | N102: -1 | O102: -1 | P102: -1 | Q102: -1 | R102: -1 | S102: 17389.12277 | T102: 11327.3092 | U102: -1 | V102: -1 | W102: -1 | X102: -1 | Y102: -1 | Z102: -1 | AC102: Ropa CaballeroCalcetín para calzado deportivo12
A103: Ropa Caballero | B103: Pantaloncillo tipo bóxer. | C103: 1 | D103: 2 | E103: =ROUND(AVERAGE(IF(F103:Z103>-1,F103:Z103)),0) -> 19906 | F103: -1 | G103: 31397.02722 | H103: 12317.29529 | I103: 15577.75581 | J103: -1 | K103: -1 | L103: -1 | M103: -1 | N103: -1 | O103: -1 | P103: -1 | Q103: -1 | R103: -1 | S103: 28257.3245 | T103: 11978.94562 | U103: -1 | V103: -1 | W103: -1 | X103: -1 | Y103: -1 | Z103: -1 | AC103: Ropa CaballeroPantaloncillo tipo bóxer.12
A104: Ropa Caballero | B104: Gorra o cachucha | C104: 1 | D104: 2 | E104: =ROUND(AVERAGE(IF(F104:Z104>-1,F104:Z104)),0) -> 20152 | F104: -1 | G104: 18838.21633 | H104: 19562.76311 | I104: 22823.22363 | J104: -1 | K104: -1 | L104: -1 | M104: -1 | N104: -1 | O104: -1 | P104: -1 | Q104: -1 | R104: -1 | S104: 19562.76311 | T104: 19972.88393 | U104: -1 | V104: -1 | W104: -1 | X104: -1 | Y104: -1 | Z104: -1 | AC104: Ropa CaballeroGorra o cachucha12
A105: Ropa Caballero | B105: Tula / Morral | C105: 1 | D105: 2 | E105: =ROUND(AVERAGE(IF(F105:Z105>-1,F105:Z105)),0) -> 76012 | F105: -1 | G105: 71585.44991 | H105: 70281.03785 | I105: 70039.52226 | J105: -1 | K105: -1 | L105: -1 | M105: -1 | N105: -1 | O105: -1 | P105: -1 | Q105: -1 | R105: -1 | S105: 95640.17522 | T105: 72515.0571 | U105: -1 | V105: -1 | W105: -1 | X105: -1 | Y105: -1 | Z105: -1 | AC105: Ropa CaballeroTula / Morral12
A106: Ropa Caballero | B106: Logo corporativo (tamaño bolsillo) | C106: 1 | D106: 2 | E106: =ROUND(AVERAGE(IF(F106:Z106>-1,F106:Z106)),0) -> 7019 | F106: -1 | G106: 6279.405444 | H106: 7003.952226 | I106: 5917.132053 | J106: -1 | K106: -1 | L106: -1 | M106: -1 | N106: -1 | O106: -1 | P106: -1 | Q106: -1 | R106: -1 | S106: 8694.561384 | T106: 7197.620391 | U106: -1 | V106: -1 | W106: -1 | X106: -1 | Y106: -1 | Z106: -1 | AC106: Ropa CaballeroLogo corporativo (tamaño bolsillo)12
A107: Ropa Caballero | B107: Logo corporativo (tamaño espalda) | C107: 1 | D107: 2 | E107: =ROUND(AVERAGE(IF(F107:Z107>-1,F107:Z107)),0) -> 12834 | F107: -1 | G107: 12558.81089 | H107: 12317.29529 | I107: 11955.0219 | J107: -1 | K107: -1 | L107: -1 | M107: -1 | N107: -1 | O107: -1 | P107: -1 | Q107: -1 | R107: -1 | S107: 15215.48242 | T107: 12123.62713 | U107: -1 | V107: -1 | W107: -1 | X107: -1 | Y107: -1 | Z107: -1 | AC107: Ropa CaballeroLogo corporativo (tamaño espalda)12
A108: Calzado Dama | B108: Calzado de calle para dama. | C108: 1 | D108: 2 | E108: =ROUND(AVERAGE(IF(F108:Z108>-1,F108:Z108)),0) -> 109846 | F108: -1 | G108: -1 | H108: 88394.7074 | I108: 96485.4798 | J108: 114719.9071 | K108: -1 | L108: -1 | M108: -1 | N108: -1 | O108: -1 | P108: -1 | Q108: -1 | R108: -1 | S108: 106266.8614 | T108: -1 | U108: -1 | V108: 144788.5986 | W108: -1 | X108: 92681.6092 | Y108: 125588.1089 | Z108: -1 | AC108: Calzado DamaCalzado de calle para dama.12
A109: Calzado Dama | B109: Calzado casual para dama. | C109: 1 | D109: 2 | E109: =ROUND(AVERAGE(IF(F109:Z109>-1,F109:Z109)),0) -> 107164 | F109: -1 | G109: -1 | H109: 89119.25419 | I109: 89964.55876 | J109: 114719.9071 | K109: -1 | L109: -1 | M109: -1 | N109: -1 | O109: -1 | P109: -1 | Q109: -1 | R109: -1 | S109: 106266.8614 | T109: -1 | U109: -1 | V109: 144788.5986 | W109: -1 | X109: 90568.34775 | Y109: 114719.9071 | Z109: -1 | AC109: Calzado DamaCalzado casual para dama.12
A110: Calzado Dama | B110: Calzado de calle para dama clima cálido. | C110: 1 | D110: 2 | E110: =ROUND(AVERAGE(IF(F110:Z110>-1,F110:Z110)),0) -> 109106 | F110: -1 | G110: -1 | H110: 89964.55876 | I110: 96485.4798 | J110: 114719.9071 | K110: -1 | L110: -1 | M110: -1 | N110: -1 | O110: -1 | P110: -1 | Q110: -1 | R110: -1 | S110: 106266.8614 | T110: -1 | U110: -1 | V110: 144788.5986 | W110: -1 | X110: 93177.17185 | Y110: 118342.6411 | Z110: -1 | AC110: Calzado DamaCalzado de calle para dama clima cálido.12
A111: Calzado Dama | B111: Cinturón. | C111: 1 | D111: 2 | E111: =ROUND(AVERAGE(IF(F111:Z111>-1,F111:Z111)),0) -> 40016 | F111: -1 | G111: -1 | H111: 30672.48044 | I111: 33691.42536 | J111: 42265.22895 | K111: -1 | L111: -1 | M111: -1 | N111: -1 | O111: -1 | P111: -1 | Q111: -1 | R111: -1 | S111: 36227.3391 | T111: -1 | U111: -1 | V111: 42144.47115 | W111: -1 | X111: 32315.24217 | Y111: 62794.05444 | Z111: -1 | AC111: Calzado DamaCinturón.12
A112: Calzado Caballero | B112: Calzado de calle para caballero formal. | C112: 1 | D112: 2 | E112: =ROUND(AVERAGE(IF(F112:Z112>-1,F112:Z112)),0) -> 116048 | F112: -1 | G112: -1 | H112: 98055.33116 | I112: 99021.39354 | J112: -1 | K112: -1 | L112: -1 | M112: -1 | N112: -1 | O112: -1 | P112: -1 | Q112: -1 | R112: -1 | S112: 111097.1732 | T112: -1 | U112: -1 | V112: 156864.3783 | W112: 120154.008 | X112: 102764.8852 | Y112: 124380.5309 | Z112: -1 | AC112: Calzado CaballeroCalzado de calle para caballero formal.12
A113: Calzado Caballero | B113: Calzado deportivo para caballero | C113: 1 | D113: 2 | E113: =ROUND(AVERAGE(IF(F113:Z113>-1,F113:Z113)),0) -> 117032 | F113: -1 | G113: -1 | H113: 106508.377 | I113: 105663.0724 | J113: -1 | K113: -1 | L113: -1 | M113: -1 | N113: -1 | O113: -1 | P113: -1 | Q113: -1 | R113: -1 | S113: 111097.1732 | T113: -1 | U113: -1 | V113: 156864.3783 | W113: 111700.9622 | X113: 111459.4466 | Y113: 115927.4851 | Z113: -1 | AC113: Calzado CaballeroCalzado deportivo para caballero12
A114: Calzado Caballero | B114: Calzado casual para caballero. | C114: 1 | D114: 2 | E114: =ROUND(AVERAGE(IF(F114:Z114>-1,F114:Z114)),0) -> 116411 | F114: -1 | G114: -1 | H114: 106508.377 | I114: 96485.4798 | J114: -1 | K114: -1 | L114: -1 | M114: -1 | N114: -1 | O114: -1 | P114: -1 | Q114: -1 | R114: -1 | S114: 111097.1732 | T114: -1 | U114: -1 | V114: 156864.3783 | W114: 114116.1182 | X114: 111459.4466 | Y114: 118342.6411 | Z114: -1 | AC114: Calzado CaballeroCalzado casual para caballero.12
A115: Calzado Caballero | B115: Cinturón | C115: 1 | D115: 2 | E115: =ROUND(AVERAGE(IF(F115:Z115>-1,F115:Z115)),0) -> 41832 | F115: -1 | G115: -1 | H115: 29223.38687 | I115: 33691.42536 | J115: -1 | K115: -1 | L115: -1 | M115: -1 | N115: -1 | O115: -1 | P115: -1 | Q115: -1 | R115: -1 | S115: 36227.3391 | T115: -1 | U115: -1 | V115: 42144.47115 | W115: 57963.74256 | X115: 30780.70677 | Y115: 62794.05444 | Z115: -1 | AC115: Calzado CaballeroCinturón12
A116: Ropa Dama | B116: Sastre formal de dos piezas para dama: chaqueta y falda o pantalón (Opción Uno). | C116: 1 | D116: 3 | E116: =ROUND(AVERAGE(IF(F116:Z116>-1,F116:Z116)),0) -> 227018 | F116: 241757.1096 | G116: 213499.7851 | H116: 209514.7778 | I116: 228232.2363 | J116: 227024.6584 | K116: -1 | L116: 254186.0489 | M116: -1 | N116: -1 | O116: -1 | P116: -1 | Q116: -1 | R116: -1 | S116: -1 | T116: 214912.4235 | U116: -1 | V116: -1 | W116: -1 | X116: -1 | Y116: -1 | Z116: -1 | AC116: Ropa DamaSastre formal de dos piezas para dama: chaqueta y falda o pantalón (Opción Uno).13
A117: Ropa Dama | B117: Sastre formal de dos piezas para dama: chaqueta y falda o pantalón (Opción Dos). | C117: 1 | D117: 3 | E117: =ROUND(AVERAGE(IF(F117:Z117>-1,F117:Z117)),0) -> 205581 | F117: 179192.0393 | G117: 210987.7951 | H117: 207099.6219 | I117: 202873.099 | J117: 202873.099 | K117: -1 | L117: 221711.3153 | M117: -1 | N117: -1 | O117: -1 | P117: -1 | Q117: -1 | R117: -1 | S117: -1 | T117: 214332.5582 | U117: -1 | V117: -1 | W117: -1 | X117: -1 | Y117: -1 | Z117: -1 | AC117: Ropa DamaSastre formal de dos piezas para dama: chaqueta y falda o pantalón (Opción Dos).13
A118: Ropa Dama | B118: Sastre formal de tres piezas para dama: chaqueta, chaleco y falda o pantalón. | C118: 1 | D118: 3 | E118: =ROUND(AVERAGE(IF(F118:Z118>-1,F118:Z118)),0) -> 293372 | F118: 363964.0002 | G118: 270014.4341 | H118: 265063.3644 | I118: 295856.6027 | J118: 265667.1534 | K118: -1 | L118: 326046.0519 | M118: -1 | N118: -1 | O118: -1 | P118: -1 | Q118: -1 | R118: -1 | S118: -1 | T118: 266995.4892 | U118: -1 | V118: -1 | W118: -1 | X118: -1 | Y118: -1 | Z118: -1 | AC118: Ropa DamaSastre formal de tres piezas para dama: chaqueta, chaleco y falda o pantalón.13
A119: Ropa Dama | B119: Blazer para dama. | C119: 1 | D119: 3 | E119: =ROUND(AVERAGE(IF(F119:Z119>-1,F119:Z119)),0) -> 181059 | F119: 164314.9065 | G119: 194661.5688 | H119: 191401.1082 | I119: 199250.365 | J119: 147324.5123 | K119: -1 | L119: 176064.868 | M119: -1 | N119: -1 | O119: -1 | P119: -1 | Q119: -1 | R119: -1 | S119: -1 | T119: 194396.1295 | U119: -1 | V119: -1 | W119: -1 | X119: -1 | Y119: -1 | Z119: -1 | AC119: Ropa DamaBlazer para dama.13
A120: Ropa Dama | B120: Blusa formal manga larga para dama. | C120: 1 | D120: 3 | E120: =ROUND(AVERAGE(IF(F120:Z120>-1,F120:Z120)),0) -> 70344 | F120: 63494.67751 | G120: 71023.81223 | H120: 69435.73327 | I120: 69435.73327 | J120: 57963.74256 | K120: -1 | L120: 89988.48248 | M120: -1 | N120: -1 | O120: -1 | P120: -1 | Q120: -1 | R120: -1 | S120: -1 | T120: 71065.96353 | U120: -1 | V120: -1 | W120: -1 | X120: -1 | Y120: -1 | Z120: -1 | AC120: Ropa DamaBlusa formal manga larga para dama.13
A121: Ropa Dama | B121: Blusa formal manga corta para dama. | C121: 1 | D121: 3 | E121: =ROUND(AVERAGE(IF(F121:Z121>-1,F121:Z121)),0) -> 66800 | F121: 62166.34174 | G121: 68509.54376 | H121: 67020.57733 | I121: 67020.57733 | J121: 55548.58662 | K121: -1 | L121: 80859.87656 | M121: -1 | N121: -1 | O121: -1 | P121: -1 | Q121: -1 | R121: -1 | S121: -1 | T121: 66477.16725 | U121: -1 | V121: -1 | W121: -1 | X121: -1 | Y121: -1 | Z121: -1 | AC121: Ropa DamaBlusa formal manga corta para dama.13
A122: Ropa Dama | B122: Blusa sport o informal para dama. | C122: 1 | D122: 3 | E122: =ROUND(AVERAGE(IF(F122:Z122>-1,F122:Z122)),0) -> 68681 | F122: 74386.80295 | G122: 67639.17624 | H122: 67020.57733 | I122: 65812.99936 | J122: 57963.74256 | K122: -1 | L122: 80859.87656 | M122: -1 | N122: -1 | O122: -1 | P122: -1 | Q122: -1 | R122: -1 | S122: -1 | T122: 67080.95623 | U122: -1 | V122: -1 | W122: -1 | X122: -1 | Y122: -1 | Z122: -1 | AC122: Ropa DamaBlusa sport o informal para dama.13
A123: Ropa Dama | B123: Blusa para dama. | C123: 1 | D123: 3 | E123: =ROUND(AVERAGE(IF(F123:Z123>-1,F123:Z123)),0) -> 66688 | F123: 55790.10221 | G123: 72840.87531 | H123: 71850.88922 | I123: 70884.82684 | J123: 57963.74256 | K123: -1 | L123: 71730.13142 | M123: -1 | N123: -1 | O123: -1 | P123: -1 | Q123: -1 | R123: -1 | S123: -1 | T123: 65752.62047 | U123: -1 | V123: -1 | W123: -1 | X123: -1 | Y123: -1 | Z123: -1 | AC123: Ropa DamaBlusa para dama.13
A124: Ropa Dama | B124: Chaqueta casual o sport. | C124: 1 | D124: 3 | E124: =ROUND(AVERAGE(IF(F124:Z124>-1,F124:Z124)),0) -> 123703 | F124: 110118.5794 | G124: 114284.7234 | H124: 111700.9622 | I124: 119550.219 | J124: 135248.7326 | K124: -1 | L124: 159110.929 | M124: -1 | N124: -1 | O124: -1 | P124: -1 | Q124: -1 | R124: -1 | S124: -1 | T124: 115903.5614 | U124: -1 | V124: -1 | W124: -1 | X124: -1 | Y124: -1 | Z124: -1 | AC124: Ropa DamaChaqueta casual o sport.13
A125: Ropa Dama | B125: Chaqueta de jean | C125: 1 | D125: 3 | E125: =ROUND(AVERAGE(IF(F125:Z125>-1,F125:Z125)),0) -> 125409 | F125: 159400.292 | G125: 113029.298 | H125: 138267.6776 | I125: 107474.4393 | J125: 123172.9529 | K125: -1 | L125: 99118.22762 | M125: -1 | N125: -1 | O125: -1 | P125: -1 | Q125: -1 | R125: -1 | S125: -1 | T125: 137398.4493 | U125: -1 | V125: -1 | W125: -1 | X125: -1 | Y125: -1 | Z125: -1 | AC125: Ropa DamaChaqueta de jean13
A126: Ropa Dama | B126: Falda | C126: 1 | D126: 3 | E126: =ROUND(AVERAGE(IF(F126:Z126>-1,F126:Z126)),0) -> 72946 | F126: 85013.48909 | G126: 69073.45988 | H126: 68228.1553 | I126: 67020.57733 | J126: 60378.8985 | K126: -1 | L126: 91292.89453 | M126: -1 | N126: -1 | O126: -1 | P126: -1 | Q126: -1 | R126: -1 | S126: -1 | T126: 69616.86997 | U126: -1 | V126: -1 | W126: -1 | X126: -1 | Y126: -1 | Z126: -1 | AC126: Ropa DamaFalda13
A127: Ropa Dama | B127: Gabán o abrigo para dama | C127: 1 | D127: 3 | E127: =ROUND(AVERAGE(IF(F127:Z127>-1,F127:Z127)),0) -> 202080 | F127: 236443.7665 | G127: 214755.2105 | H127: 210722.3558 | I127: 206495.8329 | J127: 193212.4752 | K127: -1 | L127: 143460.2628 | M127: -1 | N127: -1 | O127: -1 | P127: -1 | Q127: -1 | R127: -1 | S127: -1 | T127: 209466.9304 | U127: -1 | V127: -1 | W127: -1 | X127: -1 | Y127: -1 | Z127: -1 | AC127: Ropa DamaGabán o abrigo para dama13
A128: Ropa Dama | B128: Pantalón formal | C128: 1 | D128: 3 | E128: =ROUND(AVERAGE(IF(F128:Z128>-1,F128:Z128)),0) -> 85186 | F128: 86341.82485 | G128: 83417.43556 | H128: 81511.51298 | I128: 81994.54416 | J128: 74869.83414 | K128: -1 | L128: 103030.3246 | M128: -1 | N128: -1 | O128: -1 | P128: -1 | Q128: -1 | R128: -1 | S128: -1 | T128: 85134.24688 | U128: -1 | V128: -1 | W128: -1 | X128: -1 | Y128: -1 | Z128: -1 | AC128: Ropa DamaPantalón formal13
A129: Ropa Dama | B129: Pantalón drill formal | C129: 1 | D129: 3 | E129: =ROUND(AVERAGE(IF(F129:Z129>-1,F129:Z129)),0) -> 80390 | F129: 85013.48909 | G129: 75352.86533 | H129: 74266.04515 | I129: 72333.9204 | J129: 96606.2376 | K129: -1 | L129: 84771.97349 | M129: -1 | N129: -1 | O129: -1 | P129: -1 | Q129: -1 | R129: -1 | S129: -1 | T129: 74386.80295 | U129: -1 | V129: -1 | W129: -1 | X129: -1 | Y129: -1 | Z129: -1 | AC129: Ropa DamaPantalón drill formal13
A130: Ropa Dama | B130: Jean clásico | C130: 1 | D130: 3 | E130: =ROUND(AVERAGE(IF(F130:Z130>-1,F130:Z130)),0) -> 72313 | F130: 86341.82485 | G130: 60282.06442 | H130: 59775.10951 | I130: 58157.41072 | J130: 96606.2376 | K130: -1 | L130: 84771.97349 | M130: -1 | N130: -1 | O130: -1 | P130: -1 | Q130: -1 | R130: -1 | S130: -1 | T130: 60258.1407 | U130: -1 | V130: -1 | W130: -1 | X130: -1 | Y130: -1 | Z130: -1 | AC130: =A130&B130&C130&D130 -> Ropa DamaJean clásico13
A131: Ropa Dama | B131: Jean informal | C131: 1 | D131: 3 | E131: =ROUND(AVERAGE(IF(F131:Z131>-1,F131:Z131)),0) -> 89882 | F131: 126191.8979 | G131: 72840.87531 | H131: 71850.88922 | I131: 69918.76446 | J131: 106266.8614 | K131: -1 | L131: 110855.6576 | M131: -1 | N131: -1 | O131: -1 | P131: -1 | Q131: -1 | R131: -1 | S131: -1 | T131: 71247.10023 | U131: -1 | V131: -1 | W131: -1 | X131: -1 | Y131: -1 | Z131: -1 | AC131: Ropa DamaJean informal13
A132: Ropa Dama | B132: Camisa tipo polo | C132: 1 | D132: 3 | E132: =ROUND(AVERAGE(IF(F132:Z132>-1,F132:Z132)),0) -> 36766 | F132: 38521.73724 | G132: 31397.02722 | H132: 30793.23824 | I132: 30793.23824 | J132: 43472.80692 | K132: -1 | L132: 50862.95625 | M132: -1 | N132: -1 | O132: -1 | P132: -1 | Q132: -1 | R132: -1 | S132: -1 | T132: 31517.78502 | U132: -1 | V132: -1 | W132: -1 | X132: -1 | Y132: -1 | Z132: -1 | AC132: Ropa DamaCamisa tipo polo13
A133: Ropa Dama | B133: Camiseta tipo T-shirt básica | C133: 1 | D133: 3 | E133: =ROUND(AVERAGE(IF(F133:Z133>-1,F133:Z133)),0) -> 20726 | F133: 17932.53285 | G133: 16326.22631 | H133: 16302.30259 | I133: 15577.75581 | J133: 28981.87128 | K133: -1 | L133: 33778.00642 | M133: -1 | N133: -1 | O133: -1 | P133: -1 | Q133: -1 | R133: -1 | S133: -1 | T133: 16181.5448 | U133: -1 | V133: -1 | W133: -1 | X133: -1 | Y133: -1 | Z133: -1 | AC133: Ropa DamaCamiseta tipo T-shirt básica13
A134: Ropa Dama | B134: Bata o blusa labor | C134: 1 | D134: 3 | E134: =ROUND(AVERAGE(IF(F134:Z134>-1,F134:Z134)),0) -> 42095 | F134: 46491.75184 | G134: 31397.02722 | H134: 32000.8162 | I134: 30068.69145 | J134: 43472.80692 | K134: -1 | L134: 76816.76881 | M134: -1 | N134: -1 | O134: -1 | P134: -1 | Q134: -1 | R134: -1 | S134: -1 | T134: 34415.97214 | U134: -1 | V134: -1 | W134: -1 | X134: -1 | Y134: -1 | Z134: -1 | AC134: Ropa DamaBata o blusa labor13
A135: Ropa Dama | B135: Pashmina | C135: 1 | D135: 3 | E135: =ROUND(AVERAGE(IF(F135:Z135>-1,F135:Z135)),0) -> 29323 | F135: 11955.0219 | G135: 25117.62178 | H135: 25962.92635 | I135: 24151.5594 | J135: 28981.87128 | K135: -1 | L135: 59992.70139 | M135: -1 | N135: -1 | O135: -1 | P135: -1 | Q135: -1 | R135: -1 | S135: -1 | T135: 29102.62908 | U135: -1 | V135: -1 | W135: -1 | X135: -1 | Y135: -1 | Z135: -1 | AC135: Ropa DamaPashmina13
A136: Ropa Dama | B136: Vestido | C136: 1 | D136: 3 | E136: =ROUND(AVERAGE(IF(F136:Z136>-1,F136:Z136)),0) -> 152034 | F136: 96968.51099 | G136: 163264.5415 | H136: 160004.081 | I136: 158796.5031 | J136: 156985.1361 | K136: -1 | L136: 169543.947 | M136: -1 | N136: -1 | O136: -1 | P136: -1 | Q136: -1 | R136: -1 | S136: -1 | T136: 158675.7453 | U136: -1 | V136: -1 | W136: -1 | X136: -1 | Y136: -1 | Z136: -1 | AC136: Ropa DamaVestido13
A137: Ropa Dama | B137: Logo corporativo (tamaño bolsillo) | C137: 1 | D137: 3 | E137: =ROUND(AVERAGE(IF(F137:Z137>-1,F137:Z137)),0) -> 7495 | F137: 4830.31188 | G137: 6279.405444 | H137: 7003.952226 | I137: 5917.132053 | J137: 12075.7797 | K137: -1 | L137: 8868.862732 | M137: -1 | N137: -1 | O137: -1 | P137: -1 | Q137: -1 | R137: -1 | S137: -1 | T137: 7486.983414 | U137: -1 | V137: -1 | W137: -1 | X137: -1 | Y137: -1 | Z137: -1 | AC137: Ropa DamaLogo corporativo (tamaño bolsillo)13
A138: Ropa Dama | B138: Logo corporativo (tamaño espalda) | C138: 1 | D138: 3 | E138: =ROUND(AVERAGE(IF(F138:Z138>-1,F138:Z138)),0) -> 13555 | F138: 14490.93564 | G138: 12935.8942 | H138: 12317.29529 | I138: 11955.0219 | J138: 16906.09158 | K138: -1 | L138: 14085.37172 | M138: -1 | N138: -1 | O138: -1 | P138: -1 | Q138: -1 | R138: -1 | S138: -1 | T138: 12196.5375 | U138: -1 | V138: -1 | W138: -1 | X138: -1 | Y138: -1 | Z138: -1 | AC138: Ropa DamaLogo corporativo (tamaño espalda)13
A139: Ropa Caballero | B139: Vestido formal de dos piezas para hombre: saco y pantalón (Opción uno). | C139: 1 | D139: 3 | E139: =ROUND(AVERAGE(IF(F139:Z139>-1,F139:Z139)),0) -> 279904 | F139: -1 | G139: 238617.4069 | H139: 233304.0638 | I139: 301773.7347 | J139: -1 | K139: -1 | L139: -1 | M139: -1 | N139: -1 | O139: -1 | P139: -1 | Q139: -1 | R139: -1 | S139: 389081.6219 | T139: 236745.661 | U139: -1 | V139: -1 | W139: -1 | X139: -1 | Y139: -1 | Z139: -1 | AC139: Ropa CaballeroVestido formal de dos piezas para hombre: saco y pantalón (Opción uno).13
A140: Ropa Caballero | B140: Vestido formal de dos piezas para hombre: saco y pantalón (Opción dos). | C140: 1 | D140: 3 | E140: =ROUND(AVERAGE(IF(F140:Z140>-1,F140:Z140)),0) -> 256881 | F140: -1 | G140: 226058.596 | H140: 221228.2841 | I140: 264459.5754 | J140: -1 | K140: -1 | L140: -1 | M140: -1 | N140: -1 | O140: -1 | P140: -1 | Q140: -1 | R140: -1 | S140: 349956.0957 | T140: 222701.3014 | U140: -1 | V140: -1 | W140: -1 | X140: -1 | Y140: -1 | Z140: -1 | AC140: Ropa CaballeroVestido formal de dos piezas para hombre: saco y pantalón (Opción dos).13
A141: Ropa Caballero | B141: Camisa formal manga larga (Tipo uno, recomendable clima cálido). | C141: 1 | D141: 3 | E141: =ROUND(AVERAGE(IF(F141:Z141>-1,F141:Z141)),0) -> 67045 | F141: -1 | G141: 62794.05444 | H141: 61827.99206 | I141: 62069.50766 | J141: -1 | K141: -1 | L141: -1 | M141: -1 | N141: -1 | O141: -1 | P141: -1 | Q141: -1 | R141: -1 | S141: 85858.79367 | T141: 62673.29664 | U141: -1 | V141: -1 | W141: -1 | X141: -1 | Y141: -1 | Z141: -1 | AC141: Ropa CaballeroCamisa formal manga larga (Tipo uno, recomendable clima cálido).13
A142: Ropa Caballero | B142: Camisa formal manga corta (Tipo uno, recomendable clima cálido). | C142: 1 | D142: 3 | E142: =ROUND(AVERAGE(IF(F142:Z142>-1,F142:Z142)),0) -> 61118 | F142: -1 | G142: 56514.649 | H142: 55790.10221 | I142: 56152.3756 | J142: -1 | K142: -1 | L142: -1 | M142: -1 | N142: -1 | O142: -1 | P142: -1 | Q142: -1 | R142: -1 | S142: 81511.51298 | T142: 55621.49699 | U142: -1 | V142: -1 | W142: -1 | X142: -1 | Y142: -1 | Z142: -1 | AC142: Ropa CaballeroCamisa formal manga corta (Tipo uno, recomendable clima cálido).13
A143: Ropa Caballero | B143: Camisa formal manga larga para caballero (Tipo dos). | C143: 1 | D143: 3 | E143: =ROUND(AVERAGE(IF(F143:Z143>-1,F143:Z143)),0) -> 69025 | F143: -1 | G143: 62794.05444 | H143: 61827.99206 | I143: 62190.26545 | J143: -1 | K143: -1 | L143: -1 | M143: -1 | N143: -1 | O143: -1 | P143: -1 | Q143: -1 | R143: -1 | S143: 95640.17522 | T143: 62673.29664 | U143: -1 | V143: -1 | W143: -1 | X143: -1 | Y143: -1 | Z143: -1 | AC143: Ropa CaballeroCamisa formal manga larga para caballero (Tipo dos).13
A144: Ropa Caballero | B144: Camisa formal manga corta para caballero (Tipo dos). | C144: 1 | D144: 3 | E144: =ROUND(AVERAGE(IF(F144:Z144>-1,F144:Z144)),0) -> 62640 | F144: -1 | G144: 56514.649 | H144: 55790.10221 | I144: 56152.3756 | J144: -1 | K144: -1 | L144: -1 | M144: -1 | N144: -1 | O144: -1 | P144: -1 | Q144: -1 | R144: -1 | S144: 89119.25419 | T144: 55621.49699 | U144: -1 | V144: -1 | W144: -1 | X144: -1 | Y144: -1 | Z144: -1 | AC144: Ropa CaballeroCamisa formal manga corta para caballero (Tipo dos).13
A145: Ropa Caballero | B145: Corbata | C145: 1 | D145: 3 | E145: =ROUND(AVERAGE(IF(F145:Z145>-1,F145:Z145)),0) -> 24879 | F145: -1 | G145: 18838.21633 | H145: 18355.18514 | I145: 22823.22363 | J145: -1 | K145: -1 | L145: -1 | M145: -1 | N145: -1 | O145: -1 | P145: -1 | Q145: -1 | R145: -1 | S145: 39125.52623 | T145: 25250.91104 | U145: -1 | V145: -1 | W145: -1 | X145: -1 | Y145: -1 | Z145: -1 | AC145: Ropa CaballeroCorbata13
A146: Ropa Caballero | B146: Chaqueta casual o sport. | C146: 1 | D146: 3 | E146: =ROUND(AVERAGE(IF(F146:Z146>-1,F146:Z146)),0) -> 114715 | F146: -1 | G146: 96703.07168 | H146: 95640.17522 | I146: 107957.4705 | J146: -1 | K146: -1 | L146: -1 | M146: -1 | N146: -1 | O146: -1 | P146: -1 | Q146: -1 | R146: -1 | S146: 176064.868 | T146: 97210.02658 | U146: -1 | V146: -1 | W146: -1 | X146: -1 | Y146: -1 | Z146: -1 | AC146: Ropa CaballeroChaqueta casual o sport.13
A147: Ropa Caballero | B147: Chaqueta de jean | C147: 1 | D147: 3 | E147: =ROUND(AVERAGE(IF(F147:Z147>-1,F147:Z147)),0) -> 118215 | F147: -1 | G147: 109261.8826 | H147: 111338.6888 | I147: 107353.6815 | J147: -1 | K147: -1 | L147: -1 | M147: -1 | N147: -1 | O147: -1 | P147: -1 | Q147: -1 | R147: -1 | S147: 152154.8242 | T147: 110963.884 | U147: -1 | V147: -1 | W147: -1 | X147: -1 | Y147: -1 | Z147: -1 | AC147: Ropa CaballeroChaqueta de jean13
A148: Ropa Caballero | B148: Chaqueta de drill | C148: 1 | D148: 3 | E148: =ROUND(AVERAGE(IF(F148:Z148>-1,F148:Z148)),0) -> 117360 | F148: -1 | G148: 113029.298 | H148: 106508.377 | I148: 107353.6815 | J148: -1 | K148: -1 | L148: -1 | M148: -1 | N148: -1 | O148: -1 | P148: -1 | Q148: -1 | R148: -1 | S148: 152154.8242 | T148: 107752.4101 | U148: -1 | V148: -1 | W148: -1 | X148: -1 | Y148: -1 | Z148: -1 | AC148: Ropa CaballeroChaqueta de drill13
A149: Ropa Caballero | B149: Blazer para hombre. | C149: 1 | D149: 3 | E149: =ROUND(AVERAGE(IF(F149:Z149>-1,F149:Z149)),0) -> 183818 | F149: -1 | G149: 169543.947 | H149: 166887.2755 | I149: 216156.4566 | J149: -1 | K149: -1 | L149: -1 | M149: -1 | N149: -1 | O149: -1 | P149: -1 | Q149: -1 | R149: -1 | S149: 195627.6311 | T149: 170872.2828 | U149: -1 | V149: -1 | W149: -1 | X149: -1 | Y149: -1 | Z149: -1 | AC149: Ropa CaballeroBlazer para hombre.13
A150: Ropa Caballero | B150: Camisa sport o informal | C150: 1 | D150: 3 | E150: =ROUND(AVERAGE(IF(F150:Z150>-1,F150:Z150)),0) -> 63666 | F150: -1 | G150: 62794.05444 | H150: 61827.99206 | I150: 61465.71867 | J150: -1 | K150: -1 | L150: -1 | M150: -1 | N150: -1 | O150: -1 | P150: -1 | Q150: -1 | R150: -1 | S150: 69556.49107 | T150: 62685.82811 | U150: -1 | V150: -1 | W150: -1 | X150: -1 | Y150: -1 | Z150: -1 | AC150: Ropa CaballeroCamisa sport o informal13
A151: Ropa Caballero | B151: Camiseta tipo t-shirt blanca | C151: 1 | D151: 3 | E151: =ROUND(AVERAGE(IF(F151:Z151>-1,F151:Z151)),0) -> 16897 | F151: -1 | G151: 11303.38549 | H151: 12317.29529 | I151: 11471.99071 | J151: -1 | K151: -1 | L151: -1 | M151: -1 | N151: -1 | O151: -1 | P151: -1 | Q151: -1 | R151: -1 | S151: 36951.88588 | T151: 12438.05309 | U151: -1 | V151: -1 | W151: -1 | X151: -1 | Y151: -1 | Z151: -1 | AC151: Ropa CaballeroCamiseta tipo t-shirt blanca13
A152: Ropa Caballero | B152: Camiseta tipo t-shirt estampada | C152: 1 | D152: 3 | E152: =ROUND(AVERAGE(IF(F152:Z152>-1,F152:Z152)),0) -> 20867 | F152: -1 | G152: 15070.80091 | H152: 14732.45123 | I152: 20408.06769 | J152: -1 | K152: -1 | L152: -1 | M152: -1 | N152: -1 | O152: -1 | P152: -1 | Q152: -1 | R152: -1 | S152: 39125.52623 | T152: 14997.89054 | U152: -1 | V152: -1 | W152: -1 | X152: -1 | Y152: -1 | Z152: -1 | AC152: Ropa CaballeroCamiseta tipo t-shirt estampada13
A153: Ropa Caballero | B153: Camisa tipo polo | C153: 1 | D153: 3 | E153: =ROUND(AVERAGE(IF(F153:Z153>-1,F153:Z153)),0) -> 34150 | F153: -1 | G153: 31397.02722 | H153: 30430.96484 | I153: 30793.23824 | J153: -1 | K153: -1 | L153: -1 | M153: -1 | N153: -1 | O153: -1 | P153: -1 | Q153: -1 | R153: -1 | S153: 47820.08761 | T153: 30310.20705 | U153: -1 | V153: -1 | W153: -1 | X153: -1 | Y153: -1 | Z153: -1 | AC153: Ropa CaballeroCamisa tipo polo13
A154: Ropa Caballero | B154: Pantalón de dril formal | C154: 1 | D154: 3 | E154: =ROUND(AVERAGE(IF(F154:Z154>-1,F154:Z154)),0) -> 72889 | F154: -1 | G154: 69073.45988 | H154: 67865.88191 | I154: 66296.03055 | J154: -1 | K154: -1 | L154: -1 | M154: -1 | N154: -1 | O154: -1 | P154: -1 | Q154: -1 | R154: -1 | S154: 91292.89453 | T154: 69918.76446 | U154: -1 | V154: -1 | W154: -1 | X154: -1 | Y154: -1 | Z154: -1 | AC154: Ropa CaballeroPantalón de dril formal13
A155: Ropa Caballero | B155: Jean clásico | C155: 1 | D155: 3 | E155: =ROUND(AVERAGE(IF(F155:Z155>-1,F155:Z155)),0) -> 62130 | F155: -1 | G155: 56514.649 | H155: 55790.10221 | I155: 54220.25085 | J155: -1 | K155: -1 | L155: -1 | M155: -1 | N155: -1 | O155: -1 | P155: -1 | Q155: -1 | R155: -1 | S155: 89119.25419 | T155: 55005.17653 | U155: -1 | V155: -1 | W155: -1 | X155: -1 | Y155: -1 | Z155: -1 | AC155: Ropa CaballeroJean clásico13
A156: Ropa Caballero | B156: Jean informal | C156: 1 | D156: 3 | E156: =ROUND(AVERAGE(IF(F156:Z156>-1,F156:Z156)),0) -> 69979 | F156: -1 | G156: 62794.05444 | H156: 61827.99206 | I156: 60258.1407 | J156: -1 | K156: -1 | L156: -1 | M156: -1 | N156: -1 | O156: -1 | P156: -1 | Q156: -1 | R156: -1 | S156: 102161.0963 | T156: 62854.43334 | U156: -1 | V156: -1 | W156: -1 | X156: -1 | Y156: -1 | Z156: -1 | AC156: Ropa CaballeroJean informal13
A157: Ropa Caballero | B157: Bata o blusa labor | C157: 1 | D157: 3 | E157: =ROUND(AVERAGE(IF(F157:Z157>-1,F157:Z157)),0) -> 30185 | F157: -1 | G157: 11931.09819 | H157: 31638.54281 | I157: 31276.26942 | J157: -1 | K157: -1 | L157: -1 | M157: -1 | N157: -1 | O157: -1 | P157: -1 | Q157: -1 | R157: -1 | S157: 41299.16657 | T157: 34778.24554 | U157: -1 | V157: -1 | W157: -1 | X157: -1 | Y157: -1 | Z157: -1 | AC157: Ropa CaballeroBata o blusa labor13
A158: Ropa Caballero | B158: Calcetín para calzado calle | C158: 1 | D158: 3 | E158: =ROUND(AVERAGE(IF(F158:Z158>-1,F158:Z158)),0) -> 12400 | F158: -1 | G158: 11303.38549 | H158: 11109.71732 | I158: 10868.20173 | J158: -1 | K158: -1 | L158: -1 | M158: -1 | N158: -1 | O158: -1 | P158: -1 | Q158: -1 | R158: -1 | S158: 17389.12277 | T158: 11327.3092 | U158: -1 | V158: -1 | W158: -1 | X158: -1 | Y158: -1 | Z158: -1 | AC158: Ropa CaballeroCalcetín para calzado calle13
A159: Ropa Caballero | B159: Calcetín para calzado deportivo | C159: 1 | D159: 3 | E159: =ROUND(AVERAGE(IF(F159:Z159>-1,F159:Z159)),0) -> 12622 | F159: -1 | G159: 11931.09819 | H159: 11109.71732 | I159: 11351.23292 | J159: -1 | K159: -1 | L159: -1 | M159: -1 | N159: -1 | O159: -1 | P159: -1 | Q159: -1 | R159: -1 | S159: 17389.12277 | T159: 11327.3092 | U159: -1 | V159: -1 | W159: -1 | X159: -1 | Y159: -1 | Z159: -1 | AC159: Ropa CaballeroCalcetín para calzado deportivo13
A160: Ropa Caballero | B160: Pantaloncillo tipo bóxer. | C160: 1 | D160: 3 | E160: =ROUND(AVERAGE(IF(F160:Z160>-1,F160:Z160)),0) -> 19906 | F160: -1 | G160: 31397.02722 | H160: 12317.29529 | I160: 15577.75581 | J160: -1 | K160: -1 | L160: -1 | M160: -1 | N160: -1 | O160: -1 | P160: -1 | Q160: -1 | R160: -1 | S160: 28257.3245 | T160: 11978.94562 | U160: -1 | V160: -1 | W160: -1 | X160: -1 | Y160: -1 | Z160: -1 | AC160: Ropa CaballeroPantaloncillo tipo bóxer.13
A161: Ropa Caballero | B161: Gorra o cachucha | C161: 1 | D161: 3 | E161: =ROUND(AVERAGE(IF(F161:Z161>-1,F161:Z161)),0) -> 20152 | F161: -1 | G161: 18838.21633 | H161: 19562.76311 | I161: 22823.22363 | J161: -1 | K161: -1 | L161: -1 | M161: -1 | N161: -1 | O161: -1 | P161: -1 | Q161: -1 | R161: -1 | S161: 19562.76311 | T161: 19972.88393 | U161: -1 | V161: -1 | W161: -1 | X161: -1 | Y161: -1 | Z161: -1 | AC161: Ropa CaballeroGorra o cachucha13
A162: Ropa Caballero | B162: Tula / Morral | C162: 1 | D162: 3 | E162: =ROUND(AVERAGE(IF(F162:Z162>-1,F162:Z162)),0) -> 76012 | F162: -1 | G162: 71585.44991 | H162: 70281.03785 | I162: 70039.52226 | J162: -1 | K162: -1 | L162: -1 | M162: -1 | N162: -1 | O162: -1 | P162: -1 | Q162: -1 | R162: -1 | S162: 95640.17522 | T162: 72515.0571 | U162: -1 | V162: -1 | W162: -1 | X162: -1 | Y162: -1 | Z162: -1 | AC162: Ropa CaballeroTula / Morral13
A163: Ropa Caballero | B163: Logo corporativo (tamaño bolsillo) | C163: 1 | D163: 3 | E163: =ROUND(AVERAGE(IF(F163:Z163>-1,F163:Z163)),0) -> 7019 | F163: -1 | G163: 6279.405444 | H163: 7003.952226 | I163: 5917.132053 | J163: -1 | K163: -1 | L163: -1 | M163: -1 | N163: -1 | O163: -1 | P163: -1 | Q163: -1 | R163: -1 | S163: 8694.561384 | T163: 7197.620391 | U163: -1 | V163: -1 | W163: -1 | X163: -1 | Y163: -1 | Z163: -1 | AC163: Ropa CaballeroLogo corporativo (tamaño bolsillo)13
A164: Ropa Caballero | B164: Logo corporativo (tamaño espalda) | C164: 1 | D164: 3 | E164: =ROUND(AVERAGE(IF(F164:Z164>-1,F164:Z164)),0) -> 12834 | F164: -1 | G164: 12558.81089 | H164: 12317.29529 | I164: 11955.0219 | J164: -1 | K164: -1 | L164: -1 | M164: -1 | N164: -1 | O164: -1 | P164: -1 | Q164: -1 | R164: -1 | S164: 15215.48242 | T164: 12123.62713 | U164: -1 | V164: -1 | W164: -1 | X164: -1 | Y164: -1 | Z164: -1 | AC164: Ropa CaballeroLogo corporativo (tamaño espalda)13
A165: Calzado Dama | B165: Calzado de calle para dama. | C165: 1 | D165: 3 | E165: =ROUND(AVERAGE(IF(F165:Z165>-1,F165:Z165)),0) -> 109846 | F165: -1 | G165: -1 | H165: 88394.7074 | I165: 96485.4798 | J165: 114719.9071 | K165: -1 | L165: -1 | M165: -1 | N165: -1 | O165: -1 | P165: -1 | Q165: -1 | R165: -1 | S165: 106266.8614 | T165: -1 | U165: -1 | V165: 144788.5986 | W165: -1 | X165: 92681.6092 | Y165: 125588.1089 | Z165: -1 | AC165: Calzado DamaCalzado de calle para dama.13
A166: Calzado Dama | B166: Calzado casual para dama. | C166: 1 | D166: 3 | E166: =ROUND(AVERAGE(IF(F166:Z166>-1,F166:Z166)),0) -> 107164 | F166: -1 | G166: -1 | H166: 89119.25419 | I166: 89964.55876 | J166: 114719.9071 | K166: -1 | L166: -1 | M166: -1 | N166: -1 | O166: -1 | P166: -1 | Q166: -1 | R166: -1 | S166: 106266.8614 | T166: -1 | U166: -1 | V166: 144788.5986 | W166: -1 | X166: 90568.34775 | Y166: 114719.9071 | Z166: -1 | AC166: Calzado DamaCalzado casual para dama.13
A167: Calzado Dama | B167: Calzado de calle para dama clima cálido. | C167: 1 | D167: 3 | E167: =ROUND(AVERAGE(IF(F167:Z167>-1,F167:Z167)),0) -> 109106 | F167: -1 | G167: -1 | H167: 89964.55876 | I167: 96485.4798 | J167: 114719.9071 | K167: -1 | L167: -1 | M167: -1 | N167: -1 | O167: -1 | P167: -1 | Q167: -1 | R167: -1 | S167: 106266.8614 | T167: -1 | U167: -1 | V167: 144788.5986 | W167: -1 | X167: 93177.17185 | Y167: 118342.6411 | Z167: -1 | AC167: Calzado DamaCalzado de calle para dama clima cálido.13
A168: Calzado Dama | B168: Cinturón. | C168: 1 | D168: 3 | E168: =ROUND(AVERAGE(IF(F168:Z168>-1,F168:Z168)),0) -> 40016 | F168: -1 | G168: -1 | H168: 30672.48044 | I168: 33691.42536 | J168: 42265.22895 | K168: -1 | L168: -1 | M168: -1 | N168: -1 | O168: -1 | P168: -1 | Q168: -1 | R168: -1 | S168: 36227.3391 | T168: -1 | U168: -1 | V168: 42144.47115 | W168: -1 | X168: 32315.24217 | Y168: 62794.05444 | Z168: -1 | AC168: Calzado DamaCinturón.13
A169: Calzado Caballero | B169: Calzado de calle para caballero formal. | C169: 1 | D169: 3 | E169: =ROUND(AVERAGE(IF(F169:Z169>-1,F169:Z169)),0) -> 116048 | F169: -1 | G169: -1 | H169: 98055.33116 | I169: 99021.39354 | J169: -1 | K169: -1 | L169: -1 | M169: -1 | N169: -1 | O169: -1 | P169: -1 | Q169: -1 | R169: -1 | S169: 111097.1732 | T169: -1 | U169: -1 | V169: 156864.3783 | W169: 120154.008 | X169: 102764.8852 | Y169: 124380.5309 | Z169: -1 | AC169: Calzado CaballeroCalzado de calle para caballero formal.13
A170: Calzado Caballero | B170: Calzado deportivo para caballero | C170: 1 | D170: 3 | E170: =ROUND(AVERAGE(IF(F170:Z170>-1,F170:Z170)),0) -> 117032 | F170: -1 | G170: -1 | H170: 106508.377 | I170: 105663.0724 | J170: -1 | K170: -1 | L170: -1 | M170: -1 | N170: -1 | O170: -1 | P170: -1 | Q170: -1 | R170: -1 | S170: 111097.1732 | T170: -1 | U170: -1 | V170: 156864.3783 | W170: 111700.9622 | X170: 111459.4466 | Y170: 115927.4851 | Z170: -1 | AC170: Calzado CaballeroCalzado deportivo para caballero13
A171: Calzado Caballero | B171: Calzado casual para caballero. | C171: 1 | D171: 3 | E171: =ROUND(AVERAGE(IF(F171:Z171>-1,F171:Z171)),0) -> 116411 | F171: -1 | G171: -1 | H171: 106508.377 | I171: 96485.4798 | J171: -1 | K171: -1 | L171: -1 | M171: -1 | N171: -1 | O171: -1 | P171: -1 | Q171: -1 | R171: -1 | S171: 111097.1732 | T171: -1 | U171: -1 | V171: 156864.3783 | W171: 114116.1182 | X171: 111459.4466 | Y171: 118342.6411 | Z171: -1 | AC171: Calzado CaballeroCalzado casual para caballero.13
A172: Calzado Caballero | B172: Cinturón | C172: 1 | D172: 3 | E172: =ROUND(AVERAGE(IF(F172:Z172>-1,F172:Z172)),0) -> 41832 | F172: -1 | G172: -1 | H172: 29223.38687 | I172: 33691.42536 | J172: -1 | K172: -1 | L172: -1 | M172: -1 | N172: -1 | O172: -1 | P172: -1 | Q172: -1 | R172: -1 | S172: 36227.3391 | T172: -1 | U172: -1 | V172: 42144.47115 | W172: 57963.74256 | X172: 30780.70677 | Y172: 62794.05444 | Z172: -1 | AC172: Calzado CaballeroCinturón13
A173: Ropa Dama | B173: Sastre formal de dos piezas para dama: chaqueta y falda o pantalón (Opción Uno). | C173: 1 | D173: 4 | E173: =ROUND(AVERAGE(IF(F173:Z173>-1,F173:Z173)),0) -> 226009 | F173: 241757.1096 | G173: 213499.7851 | H173: 209514.7778 | I173: 228232.2363 | J173: 227024.6584 | K173: -1 | L173: 247125.1354 | M173: -1 | N173: -1 | O173: -1 | P173: -1 | Q173: -1 | R173: -1 | S173: -1 | T173: 214912.4235 | U173: -1 | V173: -1 | W173: -1 | X173: -1 | Y173: -1 | Z173: -1 | AC173: Ropa DamaSastre formal de dos piezas para dama: chaqueta y falda o pantalón (Opción Uno).14
A174: Ropa Dama | B174: Sastre formal de dos piezas para dama: chaqueta y falda o pantalón (Opción Dos). | C174: 1 | D174: 4 | E174: =ROUND(AVERAGE(IF(F174:Z174>-1,F174:Z174)),0) -> 204702 | F174: 179192.0393 | G174: 210987.7951 | H174: 207099.6219 | I174: 202873.099 | J174: 202873.099 | K174: -1 | L174: 215552.6676 | M174: -1 | N174: -1 | O174: -1 | P174: -1 | Q174: -1 | R174: -1 | S174: -1 | T174: 214332.5582 | U174: -1 | V174: -1 | W174: -1 | X174: -1 | Y174: -1 | Z174: -1 | AC174: Ropa DamaSastre formal de dos piezas para dama: chaqueta y falda o pantalón (Opción Dos).14
A175: Ropa Dama | B175: Sastre formal de tres piezas para dama: chaqueta, chaleco y falda o pantalón. | C175: 1 | D175: 4 | E175: =ROUND(AVERAGE(IF(F175:Z175>-1,F175:Z175)),0) -> 292079 | F175: 363964.0002 | G175: 270014.4341 | H175: 265063.3644 | I175: 295856.6027 | J175: 265667.1534 | K175: -1 | L175: 316989.2171 | M175: -1 | N175: -1 | O175: -1 | P175: -1 | Q175: -1 | R175: -1 | S175: -1 | T175: 266995.4892 | U175: -1 | V175: -1 | W175: -1 | X175: -1 | Y175: -1 | Z175: -1 | AC175: Ropa DamaSastre formal de tres piezas para dama: chaqueta, chaleco y falda o pantalón.14
A176: Ropa Dama | B176: Blazer para dama. | C176: 1 | D176: 4 | E176: =ROUND(AVERAGE(IF(F176:Z176>-1,F176:Z176)),0) -> 180360 | F176: 164314.9065 | G176: 194661.5688 | H176: 191401.1082 | I176: 199250.365 | J176: 147324.5123 | K176: -1 | L176: 171174.1772 | M176: -1 | N176: -1 | O176: -1 | P176: -1 | Q176: -1 | R176: -1 | S176: -1 | T176: 194396.1295 | U176: -1 | V176: -1 | W176: -1 | X176: -1 | Y176: -1 | Z176: -1 | AC176: Ropa DamaBlazer para dama.14
A177: Ropa Dama | B177: Blusa formal manga larga para dama. | C177: 1 | D177: 4 | E177: =ROUND(AVERAGE(IF(F177:Z177>-1,F177:Z177)),0) -> 69987 | F177: 63494.67751 | G177: 71023.81223 | H177: 69435.73327 | I177: 69435.73327 | J177: 57963.74256 | K177: -1 | L177: 87489.02393 | M177: -1 | N177: -1 | O177: -1 | P177: -1 | Q177: -1 | R177: -1 | S177: -1 | T177: 71065.96353 | U177: -1 | V177: -1 | W177: -1 | X177: -1 | Y177: -1 | Z177: -1 | AC177: Ropa DamaBlusa formal manga larga para dama.14
A178: Ropa Dama | B178: Blusa formal manga corta para dama. | C178: 1 | D178: 4 | E178: =ROUND(AVERAGE(IF(F178:Z178>-1,F178:Z178)),0) -> 66479 | F178: 62166.34174 | G178: 68509.54376 | H178: 67020.57733 | I178: 67020.57733 | J178: 55548.58662 | K178: -1 | L178: 78613.32585 | M178: -1 | N178: -1 | O178: -1 | P178: -1 | Q178: -1 | R178: -1 | S178: -1 | T178: 66477.16725 | U178: -1 | V178: -1 | W178: -1 | X178: -1 | Y178: -1 | Z178: -1 | AC178: Ropa DamaBlusa formal manga corta para dama.14
A179: Ropa Dama | B179: Blusa sport o informal para dama. | C179: 1 | D179: 4 | E179: =ROUND(AVERAGE(IF(F179:Z179>-1,F179:Z179)),0) -> 68360 | F179: 74386.80295 | G179: 67639.17624 | H179: 67020.57733 | I179: 65812.99936 | J179: 57963.74256 | K179: -1 | L179: 78613.32585 | M179: -1 | N179: -1 | O179: -1 | P179: -1 | Q179: -1 | R179: -1 | S179: -1 | T179: 67080.95623 | U179: -1 | V179: -1 | W179: -1 | X179: -1 | Y179: -1 | Z179: -1 | AC179: Ropa DamaBlusa sport o informal para dama.14
A180: Ropa Dama | B180: Blusa para dama. | C180: 1 | D180: 4 | E180: =ROUND(AVERAGE(IF(F180:Z180>-1,F180:Z180)),0) -> 66403 | F180: 55790.10221 | G180: 72840.87531 | H180: 71850.88922 | I180: 70884.82684 | J180: 57963.74256 | K180: -1 | L180: 69737.62777 | M180: -1 | N180: -1 | O180: -1 | P180: -1 | Q180: -1 | R180: -1 | S180: -1 | T180: 65752.62047 | U180: -1 | V180: -1 | W180: -1 | X180: -1 | Y180: -1 | Z180: -1 | AC180: Ropa DamaBlusa para dama.14
A181: Ropa Dama | B181: Chaqueta casual o sport. | C181: 1 | D181: 4 | E181: =ROUND(AVERAGE(IF(F181:Z181>-1,F181:Z181)),0) -> 123071 | F181: 110118.5794 | G181: 114284.7234 | H181: 111700.9622 | I181: 119550.219 | J181: 135248.7326 | K181: -1 | L181: 154690.738 | M181: -1 | N181: -1 | O181: -1 | P181: -1 | Q181: -1 | R181: -1 | S181: -1 | T181: 115903.5614 | U181: -1 | V181: -1 | W181: -1 | X181: -1 | Y181: -1 | Z181: -1 | AC181: Ropa DamaChaqueta casual o sport.14
A182: Ropa Dama | B182: Chaqueta de jean | C182: 1 | D182: 4 | E182: =ROUND(AVERAGE(IF(F182:Z182>-1,F182:Z182)),0) -> 125015 | F182: 159400.292 | G182: 113029.298 | H182: 138267.6776 | I182: 107474.4393 | J182: 123172.9529 | K182: -1 | L182: 96364.72201 | M182: -1 | N182: -1 | O182: -1 | P182: -1 | Q182: -1 | R182: -1 | S182: -1 | T182: 137398.4493 | U182: -1 | V182: -1 | W182: -1 | X182: -1 | Y182: -1 | Z182: -1 | AC182: Ropa DamaChaqueta de jean14
A183: Ropa Dama | B183: Falda | C183: 1 | D183: 4 | E183: =ROUND(AVERAGE(IF(F183:Z183>-1,F183:Z183)),0) -> 72584 | F183: 85013.48909 | G183: 69073.45988 | H183: 68228.1553 | I183: 67020.57733 | J183: 60378.8985 | K183: -1 | L183: 88756.98079 | M183: -1 | N183: -1 | O183: -1 | P183: -1 | Q183: -1 | R183: -1 | S183: -1 | T183: 69616.86997 | U183: -1 | V183: -1 | W183: -1 | X183: -1 | Y183: -1 | Z183: -1 | AC183: Ropa DamaFalda14
A184: Ropa Dama | B184: Gabán o abrigo para dama | C184: 1 | D184: 4 | E184: =ROUND(AVERAGE(IF(F184:Z184>-1,F184:Z184)),0) -> 201510 | F184: 236443.7665 | G184: 214755.2105 | H184: 210722.3558 | I184: 206495.8329 | J184: 193212.4752 | K184: -1 | L184: 139475.2555 | M184: -1 | N184: -1 | O184: -1 | P184: -1 | Q184: -1 | R184: -1 | S184: -1 | T184: 209466.9304 | U184: -1 | V184: -1 | W184: -1 | X184: -1 | Y184: -1 | Z184: -1 | AC184: Ropa DamaGabán o abrigo para dama14
A185: Ropa Dama | B185: Pantalón formal | C185: 1 | D185: 4 | E185: =ROUND(AVERAGE(IF(F185:Z185>-1,F185:Z185)),0) -> 84777 | F185: 86341.82485 | G185: 83417.43556 | H185: 81511.51298 | I185: 81994.54416 | J185: 74869.83414 | K185: -1 | L185: 100168.5926 | M185: -1 | N185: -1 | O185: -1 | P185: -1 | Q185: -1 | R185: -1 | S185: -1 | T185: 85134.24688 | U185: -1 | V185: -1 | W185: -1 | X185: -1 | Y185: -1 | Z185: -1 | AC185: Ropa DamaPantalón formal14
A186: Ropa Dama | B186: Pantalón drill formal | C186: 1 | D186: 4 | E186: =ROUND(AVERAGE(IF(F186:Z186>-1,F186:Z186)),0) -> 80054 | F186: 85013.48909 | G186: 75352.86533 | H186: 74266.04515 | I186: 72333.9204 | J186: 96606.2376 | K186: -1 | L186: 82417.19645 | M186: -1 | N186: -1 | O186: -1 | P186: -1 | Q186: -1 | R186: -1 | S186: -1 | T186: 74386.80295 | U186: -1 | V186: -1 | W186: -1 | X186: -1 | Y186: -1 | Z186: -1 | AC186: Ropa DamaPantalón drill formal14
A187: Ropa Dama | B187: Jean clásico | C187: 1 | D187: 4 | E187: =ROUND(AVERAGE(IF(F187:Z187>-1,F187:Z187)),0) -> 71977 | F187: 86341.82485 | G187: 60282.06442 | H187: 59775.10951 | I187: 58157.41072 | J187: 96606.2376 | K187: -1 | L187: 82417.19645 | M187: -1 | N187: -1 | O187: -1 | P187: -1 | Q187: -1 | R187: -1 | S187: -1 | T187: 60258.1407 | U187: -1 | V187: -1 | W187: -1 | X187: -1 | Y187: -1 | Z187: -1 | AC187: Ropa DamaJean clásico14
A188: Ropa Dama | B188: Jean informal | C188: 1 | D188: 4 | E188: =ROUND(AVERAGE(IF(F188:Z188>-1,F188:Z188)),0) -> 89442 | F188: 126191.8979 | G188: 72840.87531 | H188: 71850.88922 | I188: 69918.76446 | J188: 106266.8614 | K188: -1 | L188: 107776.3338 | M188: -1 | N188: -1 | O188: -1 | P188: -1 | Q188: -1 | R188: -1 | S188: -1 | T188: 71247.10023 | U188: -1 | V188: -1 | W188: -1 | X188: -1 | Y188: -1 | Z188: -1 | AC188: Ropa DamaJean informal14
A189: Ropa Dama | B189: Camisa tipo polo | C189: 1 | D189: 4 | E189: =ROUND(AVERAGE(IF(F189:Z189>-1,F189:Z189)),0) -> 36564 | F189: 38521.73724 | G189: 31397.02722 | H189: 30793.23824 | I189: 30793.23824 | J189: 43472.80692 | K189: -1 | L189: 49450.31787 | M189: -1 | N189: -1 | O189: -1 | P189: -1 | Q189: -1 | R189: -1 | S189: -1 | T189: 31517.78502 | U189: -1 | V189: -1 | W189: -1 | X189: -1 | Y189: -1 | Z189: -1 | AC189: Ropa DamaCamisa tipo polo14
A190: Ropa Dama | B190: Camiseta tipo T-shirt básica | C190: 1 | D190: 4 | E190: =ROUND(AVERAGE(IF(F190:Z190>-1,F190:Z190)),0) -> 20592 | F190: 17932.53285 | G190: 16326.22631 | H190: 16302.30259 | I190: 15577.75581 | J190: 28981.87128 | K190: -1 | L190: 32840.42466 | M190: -1 | N190: -1 | O190: -1 | P190: -1 | Q190: -1 | R190: -1 | S190: -1 | T190: 16181.5448 | U190: -1 | V190: -1 | W190: -1 | X190: -1 | Y190: -1 | Z190: -1 | AC190: Ropa DamaCamiseta tipo T-shirt básica14
A191: Ropa Dama | B191: Bata o blusa labor | C191: 1 | D191: 4 | E191: =ROUND(AVERAGE(IF(F191:Z191>-1,F191:Z191)),0) -> 41790 | F191: 46491.75184 | G191: 31397.02722 | H191: 32000.8162 | I191: 30068.69145 | J191: 43472.80692 | K191: -1 | L191: 74683.00132 | M191: -1 | N191: -1 | O191: -1 | P191: -1 | Q191: -1 | R191: -1 | S191: -1 | T191: 34415.97214 | U191: -1 | V191: -1 | W191: -1 | X191: -1 | Y191: -1 | Z191: -1 | AC191: Ropa DamaBata o blusa labor14
A192: Ropa Dama | B192: Pashmina | C192: 1 | D192: 4 | E192: =ROUND(AVERAGE(IF(F192:Z192>-1,F192:Z192)),0) -> 29085 | F192: 11955.0219 | G192: 25117.62178 | H192: 25962.92635 | I192: 24151.5594 | J192: 28981.87128 | K192: -1 | L192: 58326.01595 | M192: -1 | N192: -1 | O192: -1 | P192: -1 | Q192: -1 | R192: -1 | S192: -1 | T192: 29102.62908 | U192: -1 | V192: -1 | W192: -1 | X192: -1 | Y192: -1 | Z192: -1 | AC192: Ropa DamaPashmina14
A193: Ropa Dama | B193: Vestido | C193: 1 | D193: 4 | E193: =ROUND(AVERAGE(IF(F193:Z193>-1,F193:Z193)),0) -> 151361 | F193: 96968.51099 | G193: 163264.5415 | H193: 160004.081 | I193: 158796.5031 | J193: 156985.1361 | K193: -1 | L193: 164834.3929 | M193: -1 | N193: -1 | O193: -1 | P193: -1 | Q193: -1 | R193: -1 | S193: -1 | T193: 158675.7453 | U193: -1 | V193: -1 | W193: -1 | X193: -1 | Y193: -1 | Z193: -1 | AC193: Ropa DamaVestido14
A194: Ropa Dama | B194: Logo corporativo (tamaño bolsillo) | C194: 1 | D194: 4 | E194: =ROUND(AVERAGE(IF(F194:Z194>-1,F194:Z194)),0) -> 7459 | F194: 4830.31188 | G194: 6279.405444 | H194: 7003.952226 | I194: 5917.132053 | J194: 12075.7797 | K194: -1 | L194: 8621.651016 | M194: -1 | N194: -1 | O194: -1 | P194: -1 | Q194: -1 | R194: -1 | S194: -1 | T194: 7486.983414 | U194: -1 | V194: -1 | W194: -1 | X194: -1 | Y194: -1 | Z194: -1 | AC194: =A194&B194&C194&D194 -> Ropa DamaLogo corporativo (tamaño bolsillo)14
A195: Ropa Dama | B195: Logo corporativo (tamaño espalda) | C195: 1 | D195: 4 | E195: =ROUND(AVERAGE(IF(F195:Z195>-1,F195:Z195)),0) -> 13499 | F195: 14490.93564 | G195: 12935.8942 | H195: 12317.29529 | I195: 11955.0219 | J195: 16906.09158 | K195: -1 | L195: 13693.47849 | M195: -1 | N195: -1 | O195: -1 | P195: -1 | Q195: -1 | R195: -1 | S195: -1 | T195: 12196.5375 | U195: -1 | V195: -1 | W195: -1 | X195: -1 | Y195: -1 | Z195: -1 | AC195: Ropa DamaLogo corporativo (tamaño espalda)14
A196: Ropa Caballero | B196: Vestido formal de dos piezas para hombre: saco y pantalón (Opción uno). | C196: 1 | D196: 4 | E196: =ROUND(AVERAGE(IF(F196:Z196>-1,F196:Z196)),0) -> 279904 | F196: -1 | G196: 238617.4069 | H196: 233304.0638 | I196: 301773.7347 | J196: -1 | K196: -1 | L196: -1 | M196: -1 | N196: -1 | O196: -1 | P196: -1 | Q196: -1 | R196: -1 | S196: 389081.6219 | T196: 236745.661 | U196: -1 | V196: -1 | W196: -1 | X196: -1 | Y196: -1 | Z196: -1 | AC196: Ropa CaballeroVestido formal de dos piezas para hombre: saco y pantalón (Opción uno).14
A197: Ropa Caballero | B197: Vestido formal de dos piezas para hombre: saco y pantalón (Opción dos). | C197: 1 | D197: 4 | E197: =ROUND(AVERAGE(IF(F197:Z197>-1,F197:Z197)),0) -> 256881 | F197: -1 | G197: 226058.596 | H197: 221228.2841 | I197: 264459.5754 | J197: -1 | K197: -1 | L197: -1 | M197: -1 | N197: -1 | O197: -1 | P197: -1 | Q197: -1 | R197: -1 | S197: 349956.0957 | T197: 222701.3014 | U197: -1 | V197: -1 | W197: -1 | X197: -1 | Y197: -1 | Z197: -1 | AC197: Ropa CaballeroVestido formal de dos piezas para hombre: saco y pantalón (Opción dos).14
A198: Ropa Caballero | B198: Camisa formal manga larga (Tipo uno, recomendable clima cálido). | C198: 1 | D198: 4 | E198: =ROUND(AVERAGE(IF(F198:Z198>-1,F198:Z198)),0) -> 67045 | F198: -1 | G198: 62794.05444 | H198: 61827.99206 | I198: 62069.50766 | J198: -1 | K198: -1 | L198: -1 | M198: -1 | N198: -1 | O198: -1 | P198: -1 | Q198: -1 | R198: -1 | S198: 85858.79367 | T198: 62673.29664 | U198: -1 | V198: -1 | W198: -1 | X198: -1 | Y198: -1 | Z198: -1 | AC198: Ropa CaballeroCamisa formal manga larga (Tipo uno, recomendable clima cálido).14
A199: Ropa Caballero | B199: Camisa formal manga corta (Tipo uno, recomendable clima cálido). | C199: 1 | D199: 4 | E199: =ROUND(AVERAGE(IF(F199:Z199>-1,F199:Z199)),0) -> 61118 | F199: -1 | G199: 56514.649 | H199: 55790.10221 | I199: 56152.3756 | J199: -1 | K199: -1 | L199: -1 | M199: -1 | N199: -1 | O199: -1 | P199: -1 | Q199: -1 | R199: -1 | S199: 81511.51298 | T199: 55621.49699 | U199: -1 | V199: -1 | W199: -1 | X199: -1 | Y199: -1 | Z199: -1 | AC199: Ropa CaballeroCamisa formal manga corta (Tipo uno, recomendable clima cálido).14
A200: Ropa Caballero | B200: Camisa formal manga larga para caballero (Tipo dos). | C200: 1 | D200: 4 | E200: =ROUND(AVERAGE(IF(F200:Z200>-1,F200:Z200)),0) -> 69025 | F200: -1 | G200: 62794.05444 | H200: 61827.99206 | I200: 62190.26545 | J200: -1 | K200: -1 | L200: -1 | M200: -1 | N200: -1 | O200: -1 | P200: -1 | Q200: -1 | R200: -1 | S200: 95640.17522 | T200: 62673.29664 | U200: -1 | V200: -1 | W200: -1 | X200: -1 | Y200: -1 | Z200: -1 | AC200: Ropa CaballeroCamisa formal manga larga para caballero (Tipo dos).14
... 315 more rows

Sheet SolCotizacion
B1: Solicitud de Cotización - Dotación
B3: Versión: 4 | C3: 2021-12-30
B4: Información de la Entidad Compradora
B6: Nombre de la Entidad: | E6: SECRETARÍA GENERAL DE LA ALCALDÍA MAYOR DE BOGOTA D.C. | K6: NIT: | M6: 899999061
B8: Dirección de la Entidad: | E8: CARRERA 8 No. 10-65 | K8: Correo de contacto: | M8: machacon@alcaldiabogota.gov.co
B10: Municipio: | E10: BOGOTA D.C. | K10: Teléfono de contacto: | M10: 1013
B12: Nombre funcionario Comprador: | E12: LUZ KARIME FERNANDEZ CASTILLO
B16: Solicitud de Cotización
B18: Ley | D18: Ley 70 de 1988 o Ninguna Ley | G18: Tipo de Compra
B20: Segmento | D20: Calzado Caballero | G20: Zona | I20: 6 | L20: No. Beneficiarios
B22: Categoría | D22: Categoría 1 | F22: =RIGHT(D22,1) -> 1 | G22: Modalidad de Entrega
B24: Filas a agregar o eliminar:
B25: 1
B27: No. | C27: Kit / Producto | L27: Logo | M27: Número de Prendas
B28: 1 | C28: Calzado de calle para caballero formal. | L28: No | M28: 90
B29: 2 | C29: Calzado casual para caballero. | L29: No | M29: 8
B30: Si requiere agregue o elimine filas | K30: Total kit/vestuario | M30: =SUM(M28:M29) -> 98
B32: Órdenes de Entrega
B34: Tipo de Órdenes de Entrega | E34: Físico
B38: FÍSICO
B39: No. | C39: Departamento | E39: Municipio | F39: Dirección | K39: Cantidad
B40: 1 | C40: CUNDINAMARCA | E40: BOGOTA | F40: CARRERA 8 No. 10-65 | K40: 3
G41: 1. Cantidad Total Órdenes de Entrega | K41: =SUM(K39:L40) -> 3
B43: 2. Filas a agregar o eliminar Órdenes de Entrega | E43: 1
B45: VIRTUAL
B46: No. | C46: Ciudad | E46: Teléfono / Celular | F46: Correo Electrónico | K46: Cantidad
B47: 1
G48: 1. Cantidad Total Órdenes de Entrega | K48: =SUM(K46:L47) -> 0
B52: Gravámenes adicionales (estampillas)
B53: No | C53: Descripción | H53: Porcentaje
B54: 1 | C54: Estampilla Pro-Personas Mayores | H54: 0.02
B55: 2 | C55: Estampilla Universidad Distrital Francisco José de Caldas – 50 años | H55: 0.011
B56: 3 | C56: Estampilla Pro-Cultura de Bogotá. | H56: 0.005
F57: Total porcentaje: | H57: =SUM(H54:H56) -> 0.036
D58: Filas a agregar o eliminar Gravámenes:
D59: 2

Sheet Tienda Móvil
B2: Tienda Móvil
B4: Nota: el número de Beneficiarios debe ser superior a 60 en cada Tienda Móvil.
B6: ¿Número de días calendario que requiere la Tienda Móvil? | I6: 1
B8: Cantidad Tiendas Móviles | I8: 1
B10: No. | C10: Departamento | F10: Municipio | I10: Dirección y otras indicaciones | S10: Beneficiarios por día Aprox.
B11: 1

Sheet Lugar de Entrega
P1: =IF(SolCotizacion!M20=Q1,TRUE,FALSE) -> FALSE | Q1: =SUM(S:S) -> 55
B2: Lugar de entrega
B4: Nota: Recuerde que la dirección y el sitio de entrega debe ser uno solo para las modalidades de entrega de Punto Virtual y Catálogo de Vestuario, y debe ser la sede principal o regionales de la Entidad Compradora que haya solicitado la Dotación de Vestuario. No hace parte de las obligaciones del Proveedor, hacer entrega del Vestuario en sitios particulares definidos por los Beneficiarios. Recuerde que el supervisor de la Orden de Compra al momento de solicitar la dotación total, debe definir el departamento y el municipio en donde se encuentra ubicada la sede, en los campos dispuestos en el Punto Virtual del Proveedor.
B10: No. | C10: Departamento | F10: Municipio | I10: Dirección y otras indicaciones | O10: Nombre del Supervisor a cargo de recibir la Dotación | S10: Cantidad de Beneficiarios en la sede
B11: 1 | C11: CUNDINAMARCA | F11: BOGOTÁ | I11: CARRERA 8 No. 10-65 | O11: Ennis Esther Jaramillo Morato | S11: 55

Sheet ResumenCotizacion
B1: Solicitud de Cotización - Dotación | R1: =H43 -> 0.036
B4: Información de la Entidad Compradora
B6: Nombre de la Entidad: | E6: =IF(SolCotizacion!E6="","",SolCotizacion!E6) -> SECRETARÍA GENERAL DE LA ALCALDÍA MAYOR DE BOGOTA D.C. | K6: NIT: | M6: =IF(SolCotizacion!M6="","",SolCotizacion!M6) -> 899999061
B8: Dirección de la Entidad: | E8: =IF(SolCotizacion!E8="","",SolCotizacion!E8) -> CARRERA 8 No. 10-65 | K8: Correo de contacto: | M8: =IF(SolCotizacion!M8="","",SolCotizacion!M8) -> machacon@alcaldiabogota.gov.co
B10: Municipio: | E10: =IF(SolCotizacion!E10="","",SolCotizacion!E10) -> BOGOTA D.C. | K10: Teléfono de contacto: | M10: =IF(SolCotizacion!M10="","",SolCotizacion!M8) -> machacon@alcaldiabogota.gov.co
B12: Nombre funcionario Comprador: | E12: =IF(SolCotizacion!E12="","",SolCotizacion!E12) -> LUZ KARIME FERNANDEZ CASTILLO
B16: Resumen de Cotización
J17: =RIGHT(J18,1) -> 1
B18: Ley | D18: =SolCotizacion!D18 -> Ley 70 de 1988 o Ninguna Ley | E18: Segmento | G18: =SolCotizacion!D20 -> Calzado Caballero | H18: Categoría | J18: =SolCotizacion!D22 -> Categoría 1 | K18: Tipo de Compra | M18: =SolCotizacion!I18 -> 0 | N18: Zona | O18: =IF(SolCotizacion!I20=0,"",SolCotizacion!I20) -> 6
B20: No. | C20: Kit / Producto | L20: Logo | M20: Número de Prendas | O20: Unidad | P20: Precio unitario | Q20: Precio Maximo | R20: Precio Total
B21: 1 | C21: Calzado de calle para caballero formal. | L21: No | M21: 90 | O21: Und | P21: 98055.33116 | Q21: =P21/(1-R1) -> 101717.1485 | R21: =$M21*$Q21 -> 9154543.366
B22: 2 | C22: Calzado casual para caballero. | L22: No | M22: 8 | O22: Und | P22: 106508.377 | Q22: =P22/(1-R1) -> 110485.8682 | R22: =$M22*$Q22 -> 883886.9457
B23: Si requiere agregue o elimine filas | K23: Total kit/vestuario | M23: =SUM(M21:M22) -> 98 | Q23: Sub Total | R23: =SUM(R21:R22) -> 10038430.31
Q24: IVA | R24: =R23*0.19 -> 1907301.759
Q25: Valor Total | R25: =SUM(R23:R24) -> 11945732.07
B26: FÍSICO
B27: Órdenes de Entrega
B28: No. | C28: Departamento | E28: Municipio | F28: Dirección | K28: Cantidad
B29: 1 | C29: CUNDINAMARCA | E29: BOGOTA | F29: CARRERA 8 No. 10-65 | K29: 3
B31: VIRTUAL
B32: Órdenes de Entrega
B33: No. | C33: Ciudad | E33: Teléfono / Celular | F33: Correo Electrónico | K33: Cantidad
B34: 1
B36: Gravámenes adicionales*
B38: Gravámenes adicionales (estampillas)
B39: No | C39: Descripción | H39: Porcentaje
B40: 1 | C40: Estampilla Pro-Personas Mayores | H40: 0.02
B41: 2 | C41: Estampilla Universidad Distrital Francisco José de Caldas – 50 años | H41: 0.011
B42: 3 | C42: Estampilla Pro-Cultura de Bogotá. | H42: 0.005
F43: Total porcentaje: | H43: =SUM(H40:H42) -> 0.036

Sheet LISTAS (hidden)
A1: Categoría1Zona | B1: Categoría2modalidad | C1: Categoría3modalidad | D1: TipoCompra | F1: RopaDamaProductos | G1: RopaCaballeroProductos | H1: CalzadoDamaProductos | I1: CalzadoCaballeroProductos | J1: Ley70de1988oNingunaLeytc | K1: Ley1861de2017tc | L1: Ley70de1988oNingunaLeyseg | M1: Ley1861de2017seg
A2: 1 | C2: Punto Virtual | D2: Kit | F2: Bata o blusa labor | G2: Bata o blusa labor | H2: Calzado casual para dama. | I2: Calzado casual para caballero. | J2: Kit | K2: Kit | L2: Ropa Dama | M2: Ropa Dama
A3: 2 | C3: Tienda Móvil | D3: Vestuario Individual | F3: Blazer para dama. | G3: Blazer para hombre. | H3: Calzado de calle para dama clima cálido. | I3: Calzado de calle para caballero formal. | J3: Compra Individual | L3: Ropa Caballero | M3: Ropa Caballero
A4: 3 | C4: Catálogo de Vestuario | F4: Blusa formal manga corta para dama. | G4: Calcetín para calzado calle | H4: Calzado de calle para dama. | I4: Calzado deportivo para caballero | L4: Calzado Dama
A5: 4 | C5: Establecimiento | F5: Blusa formal manga larga para dama. | G5: Calcetín para calzado deportivo | H5: Cinturón. | I5: Cinturón | L5: Calzado Caballero
A6: 5 | F6: Blusa para dama. | G6: Camisa formal manga corta (Tipo uno, recomendable clima cálido).
A7: 6 | F7: Blusa sport o informal para dama. | G7: Camisa formal manga corta para caballero (Tipo dos).
A8: 7 | F8: Camisa tipo polo | G8: Camisa formal manga larga (Tipo uno, recomendable clima cálido).
F9: Camiseta tipo T-shirt básica | G9: Camisa formal manga larga para caballero (Tipo dos).
F10: Chaqueta casual o sport. | G10: Camisa sport o informal
A11: DiasTiendaMovil | C11: Proveedor | F11: Chaqueta de jean | G11: Camisa tipo polo
A12: 1 | C12: Inversiones Sarhem de Colombia S.A.S. | F12: Falda | G12: Camiseta tipo t-shirt blanca
A13: 2 | C13: Confecciones Paez S.A. | F13: Gabán o abrigo para dama | G13: Camiseta tipo t-shirt estampada
A14: 3 | C14: Unión Temporal Hermanos Blanco | F14: Jean clásico | G14: Chaqueta casual o sport.
A15: 4 | C15: Dotación Integral S.A.S. | F15: Jean informal | G15: Chaqueta de drill
A16: 5 | C16: Bacet Group S.A.S. | F16: Logo corporativo (tamaño bolsillo) | G16: Chaqueta de jean
A17: 6 | C17: Unión Temporal Calzado 2019 | F17: Logo corporativo (tamaño espalda) | G17: Corbata
C18: Sparta Shoes S.A.S. | F18: Pantalón drill formal | G18: Gorra o cachucha
F19: Pantalón formal | G19: Jean clásico
F20: Pashmina | G20: Jean informal
F21: Sastre formal de dos piezas para dama: chaqueta y falda o pantalón (Opción Dos). | G21: Logo corporativo (tamaño bolsillo)
F22: Sastre formal de dos piezas para dama: chaqueta y falda o pantalón (Opción Uno). | G22: Logo corporativo (tamaño espalda)
F23: Sastre formal de tres piezas para dama: chaqueta, chaleco y falda o pantalón. | G23: Pantalón de dril formal
F24: Vestido | G24: Pantaloncillo tipo bóxer.
G25: Tula / Morral
G26: Vestido formal de dos piezas para hombre: saco y pantalón (Opción dos).
G27: Vestido formal de dos piezas para hombre: saco y pantalón (Opción uno).

Sheet Cotizacion
B1: Solicitud de Cotización - Dotación | R1: =H43 -> 0.036
B4: Información de la Entidad Compradora
B6: Nombre de la Entidad: | E6: =IF(SolCotizacion!E6="","",SolCotizacion!E6) -> SECRETARÍA GENERAL DE LA ALCALDÍA MAYOR DE BOGOTA D.C. | K6: NIT:
B8: Dirección de la Entidad: | E8: =IF(SolCotizacion!E8="","",SolCotizacion!E8) -> CARRERA 8 No. 10-65 | K8: Correo de contacto:
B10: Municipio: | E10: =IF(SolCotizacion!E10="","",SolCotizacion!E10) -> BOGOTA D.C. | K10: Teléfono de contacto:
B12: Nombre funcionario Comprador: | E12: =IF(SolCotizacion!E12="","",SolCotizacion!E12) -> LUZ KARIME FERNANDEZ CASTILLO
B16: Resumen de Cotización
J17: =RIGHT(J18,1) -> 1
B18: Ley | D18: =SolCotizacion!D18 -> Ley 70 de 1988 o Ninguna Ley | E18: Segmento | G18: =SolCotizacion!D20 -> Calzado Caballero | H18: Categoría | J18: =SolCotizacion!D22 -> Categoría 1 | K18: Tipo de Compra | M18: =SolCotizacion!I18 -> 0 | N18: Zona | O18: =IF(SolCotizacion!I20=0,"",SolCotizacion!I20) -> 6
B19: Proveedor
B21: No. | C21: Kit / Producto | L21: Logo | M21: Número de Prendas | O21: Unidad | P21: Precio unitario | Q21: Precio Maximo | R21: Descuento / Prendas Adicionales | S21: Precio con Descuento | T21: Precio Total | U21: IVA | V21: Vr IVA | W21: Total
B22: 1 | C22: Calzado de calle para caballero formal. | L22: No | M22: 90 | V22: =IF($U22="Si",$T22*0.19,0) -> 0 | W22: =$T22+$V22 -> 0
B23: 2 | C23: Calzado casual para caballero. | L23: No | M23: 8
B24: Si requiere agregue o elimine filas | K24: Total kit/vestuario | M24: =SUM(M22:M23) -> 98 | S24: Sub Total | T24: =SUM(T22:T23) -> 0 | V24: =SUM(V$22:V22) -> 0 | W24: =SUM(W$22:W22) -> 0
B26: FÍSICO
B27: Órdenes de Entrega
B28: No. | C28: Departamento | E28: Municipio | F28: Dirección | K28: Cantidad
B29: 1 | C29: CUNDINAMARCA | E29: BOGOTA | F29: CARRERA 8 No. 10-65 | K29: 3
B31: VIRTUAL
B32: Órdenes de Entrega
B33: No. | C33: Ciudad | E33: Teléfono / Celular | F33: Correo Electrónico | K33: Cantidad
B34: 1
B36: Gravámenes adicionales*
B38: Gravámenes adicionales (estampillas)
B39: No | C39: Descripción | H39: Porcentaje
B40: 1 | C40: Estampilla Pro-Personas Mayores | H40: 0.02
B41: 2 | C41: Estampilla Universidad Distrital Francisco José de Caldas – 50 años | H41: 0.011
B42: 3 | C42: Estampilla Pro-Cultura de Bogotá. | H42: 0.005
F43: Total porcentaje: | H43: =SUM(H40:H42) -> 0.036

Sheet CSV (hidden)
A1: Tipo (servicio o artÃ­culo) | B1: Cantidad | C1: CÃ³digo de unidad de medida* | D1: PosiciÃ³n | E1: Precio base | F1: Divisa | G1: DescripciÃ³n | H1: MercancÃ­a
A2: item | B2: 1000 | C2: Und | E2: "93280" | F2: COP | G2: dtv03--Ley 70 de 1988 o Ninguna Ley - Calzado Caballero - Calzado casual para caballero.
A3: item | B3: 1 | C3: Und | E3: "17723200" | F3: COP | G3: dtv03--IVA
